{"text_format":"1","workbook":"xlsx","n_sheets":5,"sheets":["Disclaimer","Trade","Orders","Positions","Instruments"],"not_rendered":{"charts":0,"images":0,"macros":1,"external_links":1,"defined_names":1,"comments":0,"pivot_tables":0},"unopened":[],"bounds":{"document_bytes":16777216,"sheet_cells":100000,"rows_first":2000,"rows_last":500,"rows_between":2000,"halvings":0,"cell_chars":16384,"cell_head_chars":4096},"cells_cut":0,"cells_raw":0,"read":"whole","date_system":"1900"}

{"sheet":"Disclaimer","index":0,"n_rows":18,"n_cols":2,"rows_kept":18,"cut":false,"hidden":false,"merged":[[1,1,15,3],[17,1,24,3]]}
[]
[null,"Copyright © 2019 Saxo Bank A/S\n\nLicensed under the Apache License, Version 2.0 (the \"License\");\nYou may not use this file except in compliance with the License.\nYou may obtain a copy of the License at\n\nhttp://www.apache.org/licenses/LICENSE-2.0\n\nUnless required by applicable law or agreed to in writing, software\ndistributed under the License is distributed on an \"AS IS\" BASIS,\nWITHOUT WARRANTIES OR CONDITIONS OF ANY KIND, either express or implied.\nSee the License for the specific language governing permissions and limitations under the License."]
[]
[]
[]
[]
[]
[]
[]
[]
[]
[]
[]
[]
[]
[]
[]
[null,"WARNING:\n\nThis tool sends trades AUTOMATICALLY to Saxo's OpenAPI and should only be used for demonstration purposes.\n\nDO NOT USE IN LIVE ENVIRONMENT.\n\n"]

{"sheet":"Trade","index":1,"n_rows":13,"n_cols":11,"rows_kept":13,"cut":false,"hidden":false,"merged":[[0,0,0,2]]}
["OpenAPI Bulk Order Tool"]
[]
[]
[]
["Currency","Account","AccountKey","Balance",null,null,"Statistics","Success","Error","Time"]
["EUR",9073876,"X1JlUyeXTMK3mBxzd-D2UA==",376962.27,null,null,"Precheck"]
["AUD","9073876_AUD","Nr0wsPGUYZCD4yIkFDGa4A==",93326.99,null,null,"Orders"]
["DKK","9073876_DKK","KMgyuRfY-yDoSzDmdK-HZQ==",997861.97]
["JPY","9073876_JPY","MXt3pDqb5VEujcdqBV1cmQ==",92943377]
["USD","9073876_USD","hR3h0OwLknemBKHq6khSww==",996618.99]
[]
["Order List"]
["Symbol","AssetType","Buy/Sell","Amount","OrderType","Price","Duration","Currency","Trade Account","UIC","Status"]

{"sheet":"Orders","index":2,"n_rows":1000,"n_cols":14,"rows_kept":1000,"cut":false,"hidden":false,"merged":[[0,0,0,1],[2,11,2,12]]}
["Orders Overview"]
[]
[{"$f":"_xll.OpenAPISubscribe(\"/openapi/port/v1/orders/subscriptions\",\"ClientKey:\"&_xll.OpenAPIGetClientKey(),\"displayandformat\",\"AccountId,AccountKey,OrderId,DisplayAndFormat.Symbol,AssetType,BuySell,Amount,OpenOrderType,Price,Duration.DurationType,Status\")","v":"AccountId"},"AccountKey","OrderId","DisplayAndFormat.Symbol","AssetType","BuySell","Amount","OpenOrderType","Price","Duration.DurationType","Status","Actions",null,"Status"]
[{"$f":"_xll.OpenAPISubscribeRtd(\"ExcelTrader_cb5fe5cd-2dc1-4c59-9544-362dd4aed556\",\"OrderId\",\"78379587\")","v":"9073876"},"X1JlUyeXTMK3mBxzd-D2UA==","78379587","AAPL:xnas","Stock","Sell",50,"Market"," ","DayOrder","Working",{"$f":"IF(K4=\"Working\",\"Market\",\"\")","v":"Market"},{"$f":"IF(K4=\"Working\",\"Cancel\",\"\")","v":"Cancel"}]
[null,null,null,null,null,null,null,null,null,null,null,{"$f":"IF(K5=\"Working\",\"Market\",\"\")","v":""},{"$f":"IF(K5=\"Working\",\"Cancel\",\"\")","v":""}]
[null,null,null,null,null,null,null,null,null,null,null,"",""]
[null,null,null,null,null,null,null,null,null,null,null,"",""]
[null,null,null,null,null,null,null,null,null,null,null,"",""]
[null,null,null,null,null,null,null,null,null,null,null,"",""]
[null,null,null,null,null,null,null,null,null,null,null,"",""]
[null,null,null,null,null,null,null,null,null,null,null,"",""]
[null,null,null,null,null,null,null,null,null,null,null,"",""]
[null,null,null,null,null,null,null,null,null,null,null,"",""]
[null,null,null,null,null,null,null,null,null,null,null,"",""]
[null,null,null,null,null,null,null,null,null,null,null,"",""]
[null,null,null,null,null,null,null,null,null,null,null,"",""]
[null,null,null,null,null,null,null,null,null,null,null,"",""]
[null,null,null,null,null,null,null,null,null,null,null,"",""]
[null,null,null,null,null,null,null,null,null,null,null,"",""]
[null,null,null,null,null,null,null,null,null,null,null,"",""]
[null,null,null,null,null,null,null,null,null,null,null,"",""]
[null,null,null,null,null,null,null,null,null,null,null,"",""]
[null,null,null,null,null,null,null,null,null,null,null,"",""]
[null,null,null,null,null,null,null,null,null,null,null,"",""]
[null,null,null,null,null,null,null,null,null,null,null,"",""]
[null,null,null,null,null,null,null,null,null,null,null,"",""]
[null,null,null,null,null,null,null,null,null,null,null,"",""]
[null,null,null,null,null,null,null,null,null,null,null,"",""]
[null,null,null,null,null,null,null,null,null,null,null,"",""]
[null,null,null,null,null,null,null,null,null,null,null,"",""]
[null,null,null,null,null,null,null,null,null,null,null,"",""]
[null,null,null,null,null,null,null,null,null,null,null,"",""]
[null,null,null,null,null,null,null,null,null,null,null,"",""]
[null,null,null,null,null,null,null,null,null,null,null,"",""]
[null,null,null,null,null,null,null,null,null,null,null,"",""]
[null,null,null,null,null,null,null,null,null,null,null,"",""]
[null,null,null,null,null,null,null,null,null,null,null,"",""]
[null,null,null,null,null,null,null,null,null,null,null,"",""]
[null,null,null,null,null,null,null,null,null,null,null,"",""]
[null,null,null,null,null,null,null,null,null,null,null,"",""]
[null,null,null,null,null,null,null,null,null,null,null,"",""]
[null,null,null,null,null,null,null,null,null,null,null,"",""]
[null,null,null,null,null,null,null,null,null,null,null,"",""]
[null,null,null,null,null,null,null,null,null,null,null,"",""]
[null,null,null,null,null,null,null,null,null,null,null,"",""]
[null,null,null,null,null,null,null,null,null,null,null,"",""]
[null,null,null,null,null,null,null,null,null,null,null,"",""]
[null,null,null,null,null,null,null,null,null,null,null,"",""]
[null,null,null,null,null,null,null,null,null,null,null,"",""]
[null,null,null,null,null,null,null,null,null,null,null,"",""]
[null,null,null,null,null,null,null,null,null,null,null,"",""]
[null,null,null,null,null,null,null,null,null,null,null,"",""]
[null,null,null,null,null,null,null,null,null,null,null,"",""]
[null,null,null,null,null,null,null,null,null,null,null,"",""]
[null,null,null,null,null,null,null,null,null,null,null,"",""]
[null,null,null,null,null,null,null,null,null,null,null,"",""]
[null,null,null,null,null,null,null,null,null,null,null,"",""]
[null,null,null,null,null,null,null,null,null,null,null,"",""]
[null,null,null,null,null,null,null,null,null,null,null,"",""]
[null,null,null,null,null,null,null,null,null,null,null,"",""]
[null,null,null,null,null,null,null,null,null,null,null,"",""]
[null,null,null,null,null,null,null,null,null,null,null,"",""]
[null,null,null,null,null,null,null,null,null,null,null,"",""]
[null,null,null,null,null,null,null,null,null,null,null,"",""]
[null,null,null,null,null,null,null,null,null,null,null,"",""]
[null,null,null,null,null,null,null,null,null,null,null,"",""]
[null,null,null,null,null,null,null,null,null,null,null,"",""]
[null,null,null,null,null,null,null,null,null,null,null,"",""]
[null,null,null,null,null,null,null,null,null,null,null,{"$f":"IF(K69=\"Working\",\"Market\",\"\")","v":""},{"$f":"IF(K69=\"Working\",\"Cancel\",\"\")","v":""}]
[null,null,null,null,null,null,null,null,null,null,null,"",""]
[null,null,null,null,null,null,null,null,null,null,null,"",""]
[null,null,null,null,null,null,null,null,null,null,null,"",""]
[null,null,null,null,null,null,null,null,null,null,null,"",""]
[null,null,null,null,null,null,null,null,null,null,null,"",""]
[null,null,null,null,null,null,null,null,null,null,null,"",""]
[null,null,null,null,null,null,null,null,null,null,null,"",""]
[null,null,null,null,null,null,null,null,null,null,null,"",""]
[null,null,null,null,null,null,null,null,null,null,null,"",""]
[null,null,null,null,null,null,null,null,null,null,null,"",""]
[null,null,null,null,null,null,null,null,null,null,null,"",""]
[null,null,null,null,null,null,null,null,null,null,null,"",""]
[null,null,null,null,null,null,null,null,null,null,null,"",""]
[null,null,null,null,null,null,null,null,null,null,null,"",""]
[null,null,null,null,null,null,null,null,null,null,null,"",""]
[null,null,null,null,null,null,null,null,null,null,null,"",""]
[null,null,null,null,null,null,null,null,null,null,null,"",""]
[null,null,null,null,null,null,null,null,null,null,null,"",""]
[null,null,null,null,null,null,null,null,null,null,null,"",""]
[null,null,null,null,null,null,null,null,null,null,null,"",""]
[null,null,null,null,null,null,null,null,null,null,null,"",""]
[null,null,null,null,null,null,null,null,null,null,null,"",""]
[null,null,null,null,null,null,null,null,null,null,null,"",""]
[null,null,null,null,null,null,null,null,null,null,null,"",""]
[null,null,null,null,null,null,null,null,null,null,null,"",""]
[null,null,null,null,null,null,null,null,null,null,null,"",""]
[null,null,null,null,null,null,null,null,null,null,null,"",""]
[null,null,null,null,null,null,null,null,null,null,null,"",""]
[null,null,null,null,null,null,null,null,null,null,null,"",""]
[null,null,null,null,null,null,null,null,null,null,null,"",""]
[null,null,null,null,null,null,null,null,null,null,null,"",""]
[null,null,null,null,null,null,null,null,null,null,null,"",""]
[null,null,null,null,null,null,null,null,null,null,null,"",""]
[null,null,null,null,null,null,null,null,null,null,null,"",""]
[null,null,null,null,null,null,null,null,null,null,null,"",""]
[null,null,null,null,null,null,null,null,null,null,null,"",""]
[null,null,null,null,null,null,null,null,null,null,null,"",""]
[null,null,null,null,null,null,null,null,null,null,null,"",""]
[null,null,null,null,null,null,null,null,null,null,null,"",""]
[null,null,null,null,null,null,null,null,null,null,null,"",""]
[null,null,null,null,null,null,null,null,null,null,null,"",""]
[null,null,null,null,null,null,null,null,null,null,null,"",""]
[null,null,null,null,null,null,null,null,null,null,null,"",""]
[null,null,null,null,null,null,null,null,null,null,null,"",""]
[null,null,null,null,null,null,null,null,null,null,null,"",""]
[null,null,null,null,null,null,null,null,null,null,null,"",""]
[null,null,null,null,null,null,null,null,null,null,null,"",""]
[null,null,null,null,null,null,null,null,null,null,null,"",""]
[null,null,null,null,null,null,null,null,null,null,null,"",""]
[null,null,null,null,null,null,null,null,null,null,null,"",""]
[null,null,null,null,null,null,null,null,null,null,null,"",""]
[null,null,null,null,null,null,null,null,null,null,null,"",""]
[null,null,null,null,null,null,null,null,null,null,null,"",""]
[null,null,null,null,null,null,null,null,null,null,null,"",""]
[null,null,null,null,null,null,null,null,null,null,null,"",""]
[null,null,null,null,null,null,null,null,null,null,null,"",""]
[null,null,null,null,null,null,null,null,null,null,null,"",""]
[null,null,null,null,null,null,null,null,null,null,null,"",""]
[null,null,null,null,null,null,null,null,null,null,null,"",""]
[null,null,null,null,null,null,null,null,null,null,null,"",""]
[null,null,null,null,null,null,null,null,null,null,null,"",""]
[null,null,null,null,null,null,null,null,null,null,null,"",""]
[null,null,null,null,null,null,null,null,null,null,null,"",""]
[null,null,null,null,null,null,null,null,null,null,null,{"$f":"IF(K133=\"Working\",\"Market\",\"\")","v":""},{"$f":"IF(K133=\"Working\",\"Cancel\",\"\")","v":""}]
[null,null,null,null,null,null,null,null,null,null,null,"",""]
[null,null,null,null,null,null,null,null,null,null,null,"",""]
[null,null,null,null,null,null,null,null,null,null,null,"",""]
[null,null,null,null,null,null,null,null,null,null,null,"",""]
[null,null,null,null,null,null,null,null,null,null,null,"",""]
[null,null,null,null,null,null,null,null,null,null,null,"",""]
[null,null,null,null,null,null,null,null,null,null,null,"",""]
[null,null,null,null,null,null,null,null,null,null,null,"",""]
[null,null,null,null,null,null,null,null,null,null,null,"",""]
[null,null,null,null,null,null,null,null,null,null,null,"",""]
[null,null,null,null,null,null,null,null,null,null,null,"",""]
[null,null,null,null,null,null,null,null,null,null,null,"",""]
[null,null,null,null,null,null,null,null,null,null,null,"",""]
[null,null,null,null,null,null,null,null,null,null,null,"",""]
[null,null,null,null,null,null,null,null,null,null,null,"",""]
[null,null,null,null,null,null,null,null,null,null,null,"",""]
[null,null,null,null,null,null,null,null,null,null,null,"",""]
[null,null,null,null,null,null,null,null,null,null,null,"",""]
[null,null,null,null,null,null,null,null,null,null,null,"",""]
[null,null,null,null,null,null,null,null,null,null,null,"",""]
[null,null,null,null,null,null,null,null,null,null,null,"",""]
[null,null,null,null,null,null,null,null,null,null,null,"",""]
[null,null,null,null,null,null,null,null,null,null,null,"",""]
[null,null,null,null,null,null,null,null,null,null,null,"",""]
[null,null,null,null,null,null,null,null,null,null,null,"",""]
[null,null,null,null,null,null,null,null,null,null,null,"",""]
[null,null,null,null,null,null,null,null,null,null,null,"",""]
[null,null,null,null,null,null,null,null,null,null,null,"",""]
[null,null,null,null,null,null,null,null,null,null,null,"",""]
[null,null,null,null,null,null,null,null,null,null,null,"",""]
[null,null,null,null,null,null,null,null,null,null,null,"",""]
[null,null,null,null,null,null,null,null,null,null,null,"",""]
[null,null,null,null,null,null,null,null,null,null,null,"",""]
[null,null,null,null,null,null,null,null,null,null,null,"",""]
[null,null,null,null,null,null,null,null,null,null,null,"",""]
[null,null,null,null,null,null,null,null,null,null,null,"",""]
[null,null,null,null,null,null,null,null,null,null,null,"",""]
[null,null,null,null,null,null,null,null,null,null,null,"",""]
[null,null,null,null,null,null,null,null,null,null,null,"",""]
[null,null,null,null,null,null,null,null,null,null,null,"",""]
[null,null,null,null,null,null,null,null,null,null,null,"",""]
[null,null,null,null,null,null,null,null,null,null,null,"",""]
[null,null,null,null,null,null,null,null,null,null,null,"",""]
[null,null,null,null,null,null,null,null,null,null,null,"",""]
[null,null,null,null,null,null,null,null,null,null,null,"",""]
[null,null,null,null,null,null,null,null,null,null,null,"",""]
[null,null,null,null,null,null,null,null,null,null,null,"",""]
[null,null,null,null,null,null,null,null,null,null,null,"",""]
[null,null,null,null,null,null,null,null,null,null,null,"",""]
[null,null,null,null,null,null,null,null,null,null,null,"",""]
[null,null,null,null,null,null,null,null,null,null,null,"",""]
[null,null,null,null,null,null,null,null,null,null,null,"",""]
[null,null,null,null,null,null,null,null,null,null,null,"",""]
[null,null,null,null,null,null,null,null,null,null,null,"",""]
[null,null,null,null,null,null,null,null,null,null,null,"",""]
[null,null,null,null,null,null,null,null,null,null,null,"",""]
[null,null,null,null,null,null,null,null,null,null,null,"",""]
[null,null,null,null,null,null,null,null,null,null,null,"",""]
[null,null,null,null,null,null,null,null,null,null,null,"",""]
[null,null,null,null,null,null,null,null,null,null,null,"",""]
[null,null,null,null,null,null,null,null,null,null,null,"",""]
[null,null,null,null,null,null,null,null,null,null,null,"",""]
[null,null,null,null,null,null,null,null,null,null,null,"",""]
[null,null,null,null,null,null,null,null,null,null,null,{"$f":"IF(K197=\"Working\",\"Market\",\"\")","v":""},{"$f":"IF(K197=\"Working\",\"Cancel\",\"\")","v":""}]
[null,null,null,null,null,null,null,null,null,null,null,"",""]
[null,null,null,null,null,null,null,null,null,null,null,"",""]
[null,null,null,null,null,null,null,null,null,null,null,"",""]
[null,null,null,null,null,null,null,null,null,null,null,"",""]
[null,null,null,null,null,null,null,null,null,null,null,"",""]
[null,null,null,null,null,null,null,null,null,null,null,"",""]
[null,null,null,null,null,null,null,null,null,null,null,"",""]
[null,null,null,null,null,null,null,null,null,null,null,"",""]
[null,null,null,null,null,null,null,null,null,null,null,"",""]
[null,null,null,null,null,null,null,null,null,null,null,"",""]
[null,null,null,null,null,null,null,null,null,null,null,"",""]
[null,null,null,null,null,null,null,null,null,null,null,"",""]
[null,null,null,null,null,null,null,null,null,null,null,"",""]
[null,null,null,null,null,null,null,null,null,null,null,"",""]
[null,null,null,null,null,null,null,null,null,null,null,"",""]
[null,null,null,null,null,null,null,null,null,null,null,"",""]
[null,null,null,null,null,null,null,null,null,null,null,"",""]
[null,null,null,null,null,null,null,null,null,null,null,"",""]
[null,null,null,null,null,null,null,null,null,null,null,"",""]
[null,null,null,null,null,null,null,null,null,null,null,"",""]
[null,null,null,null,null,null,null,null,null,null,null,"",""]
[null,null,null,null,null,null,null,null,null,null,null,"",""]
[null,null,null,null,null,null,null,null,null,null,null,"",""]
[null,null,null,null,null,null,null,null,null,null,null,"",""]
[null,null,null,null,null,null,null,null,null,null,null,"",""]
[null,null,null,null,null,null,null,null,null,null,null,"",""]
[null,null,null,null,null,null,null,null,null,null,null,"",""]
[null,null,null,null,null,null,null,null,null,null,null,"",""]
[null,null,null,null,null,null,null,null,null,null,null,"",""]
[null,null,null,null,null,null,null,null,null,null,null,"",""]
[null,null,null,null,null,null,null,null,null,null,null,"",""]
[null,null,null,null,null,null,null,null,null,null,null,"",""]
[null,null,null,null,null,null,null,null,null,null,null,"",""]
[null,null,null,null,null,null,null,null,null,null,null,"",""]
[null,null,null,null,null,null,null,null,null,null,null,"",""]
[null,null,null,null,null,null,null,null,null,null,null,"",""]
[null,null,null,null,null,null,null,null,null,null,null,"",""]
[null,null,null,null,null,null,null,null,null,null,null,"",""]
[null,null,null,null,null,null,null,null,null,null,null,"",""]
[null,null,null,null,null,null,null,null,null,null,null,"",""]
[null,null,null,null,null,null,null,null,null,null,null,"",""]
[null,null,null,null,null,null,null,null,null,null,null,"",""]
[null,null,null,null,null,null,null,null,null,null,null,"",""]
[null,null,null,null,null,null,null,null,null,null,null,"",""]
[null,null,null,null,null,null,null,null,null,null,null,"",""]
[null,null,null,null,null,null,null,null,null,null,null,"",""]
[null,null,null,null,null,null,null,null,null,null,null,"",""]
[null,null,null,null,null,null,null,null,null,null,null,"",""]
[null,null,null,null,null,null,null,null,null,null,null,"",""]
[null,null,null,null,null,null,null,null,null,null,null,"",""]
[null,null,null,null,null,null,null,null,null,null,null,"",""]
[null,null,null,null,null,null,null,null,null,null,null,"",""]
[null,null,null,null,null,null,null,null,null,null,null,"",""]
[null,null,null,null,null,null,null,null,null,null,null,"",""]
[null,null,null,null,null,null,null,null,null,null,null,"",""]
[null,null,null,null,null,null,null,null,null,null,null,"",""]
[null,null,null,null,null,null,null,null,null,null,null,"",""]
[null,null,null,null,null,null,null,null,null,null,null,"",""]
[null,null,null,null,null,null,null,null,null,null,null,"",""]
[null,null,null,null,null,null,null,null,null,null,null,"",""]
[null,null,null,null,null,null,null,null,null,null,null,"",""]
[null,null,null,null,null,null,null,null,null,null,null,"",""]
[null,null,null,null,null,null,null,null,null,null,null,"",""]
[null,null,null,null,null,null,null,null,null,null,null,{"$f":"IF(K261=\"Working\",\"Market\",\"\")","v":""},{"$f":"IF(K261=\"Working\",\"Cancel\",\"\")","v":""}]
[null,null,null,null,null,null,null,null,null,null,null,"",""]
[null,null,null,null,null,null,null,null,null,null,null,"",""]
[null,null,null,null,null,null,null,null,null,null,null,"",""]
[null,null,null,null,null,null,null,null,null,null,null,"",""]
[null,null,null,null,null,null,null,null,null,null,null,"",""]
[null,null,null,null,null,null,null,null,null,null,null,"",""]
[null,null,null,null,null,null,null,null,null,null,null,"",""]
[null,null,null,null,null,null,null,null,null,null,null,"",""]
[null,null,null,null,null,null,null,null,null,null,null,"",""]
[null,null,null,null,null,null,null,null,null,null,null,"",""]
[null,null,null,null,null,null,null,null,null,null,null,"",""]
[null,null,null,null,null,null,null,null,null,null,null,"",""]
[null,null,null,null,null,null,null,null,null,null,null,"",""]
[null,null,null,null,null,null,null,null,null,null,null,"",""]
[null,null,null,null,null,null,null,null,null,null,null,"",""]
[null,null,null,null,null,null,null,null,null,null,null,"",""]
[null,null,null,null,null,null,null,null,null,null,null,"",""]
[null,null,null,null,null,null,null,null,null,null,null,"",""]
[null,null,null,null,null,null,null,null,null,null,null,"",""]
[null,null,null,null,null,null,null,null,null,null,null,"",""]
[null,null,null,null,null,null,null,null,null,null,null,"",""]
[null,null,null,null,null,null,null,null,null,null,null,"",""]
[null,null,null,null,null,null,null,null,null,null,null,"",""]
[null,null,null,null,null,null,null,null,null,null,null,"",""]
[null,null,null,null,null,null,null,null,null,null,null,"",""]
[null,null,null,null,null,null,null,null,null,null,null,"",""]
[null,null,null,null,null,null,null,null,null,null,null,"",""]
[null,null,null,null,null,null,null,null,null,null,null,"",""]
[null,null,null,null,null,null,null,null,null,null,null,"",""]
[null,null,null,null,null,null,null,null,null,null,null,"",""]
[null,null,null,null,null,null,null,null,null,null,null,"",""]
[null,null,null,null,null,null,null,null,null,null,null,"",""]
[null,null,null,null,null,null,null,null,null,null,null,"",""]
[null,null,null,null,null,null,null,null,null,null,null,"",""]
[null,null,null,null,null,null,null,null,null,null,null,"",""]
[null,null,null,null,null,null,null,null,null,null,null,"",""]
[null,null,null,null,null,null,null,null,null,null,null,"",""]
[null,null,null,null,null,null,null,null,null,null,null,"",""]
[null,null,null,null,null,null,null,null,null,null,null,"",""]
[null,null,null,null,null,null,null,null,null,null,null,"",""]
[null,null,null,null,null,null,null,null,null,null,null,"",""]
[null,null,null,null,null,null,null,null,null,null,null,"",""]
[null,null,null,null,null,null,null,null,null,null,null,"",""]
[null,null,null,null,null,null,null,null,null,null,null,"",""]
[null,null,null,null,null,null,null,null,null,null,null,"",""]
[null,null,null,null,null,null,null,null,null,null,null,"",""]
[null,null,null,null,null,null,null,null,null,null,null,"",""]
[null,null,null,null,null,null,null,null,null,null,null,"",""]
[null,null,null,null,null,null,null,null,null,null,null,"",""]
[null,null,null,null,null,null,null,null,null,null,null,"",""]
[null,null,null,null,null,null,null,null,null,null,null,"",""]
[null,null,null,null,null,null,null,null,null,null,null,"",""]
[null,null,null,null,null,null,null,null,null,null,null,"",""]
[null,null,null,null,null,null,null,null,null,null,null,"",""]
[null,null,null,null,null,null,null,null,null,null,null,"",""]
[null,null,null,null,null,null,null,null,null,null,null,"",""]
[null,null,null,null,null,null,null,null,null,null,null,"",""]
[null,null,null,null,null,null,null,null,null,null,null,"",""]
[null,null,null,null,null,null,null,null,null,null,null,"",""]
[null,null,null,null,null,null,null,null,null,null,null,"",""]
[null,null,null,null,null,null,null,null,null,null,null,"",""]
[null,null,null,null,null,null,null,null,null,null,null,"",""]
[null,null,null,null,null,null,null,null,null,null,null,"",""]
[null,null,null,null,null,null,null,null,null,null,null,{"$f":"IF(K325=\"Working\",\"Market\",\"\")","v":""},{"$f":"IF(K325=\"Working\",\"Cancel\",\"\")","v":""}]
[null,null,null,null,null,null,null,null,null,null,null,"",""]
[null,null,null,null,null,null,null,null,null,null,null,"",""]
[null,null,null,null,null,null,null,null,null,null,null,"",""]
[null,null,null,null,null,null,null,null,null,null,null,"",""]
[null,null,null,null,null,null,null,null,null,null,null,"",""]
[null,null,null,null,null,null,null,null,null,null,null,"",""]
[null,null,null,null,null,null,null,null,null,null,null,"",""]
[null,null,null,null,null,null,null,null,null,null,null,"",""]
[null,null,null,null,null,null,null,null,null,null,null,"",""]
[null,null,null,null,null,null,null,null,null,null,null,"",""]
[null,null,null,null,null,null,null,null,null,null,null,"",""]
[null,null,null,null,null,null,null,null,null,null,null,"",""]
[null,null,null,null,null,null,null,null,null,null,null,"",""]
[null,null,null,null,null,null,null,null,null,null,null,"",""]
[null,null,null,null,null,null,null,null,null,null,null,"",""]
[null,null,null,null,null,null,null,null,null,null,null,"",""]
[null,null,null,null,null,null,null,null,null,null,null,"",""]
[null,null,null,null,null,null,null,null,null,null,null,"",""]
[null,null,null,null,null,null,null,null,null,null,null,"",""]
[null,null,null,null,null,null,null,null,null,null,null,"",""]
[null,null,null,null,null,null,null,null,null,null,null,"",""]
[null,null,null,null,null,null,null,null,null,null,null,"",""]
[null,null,null,null,null,null,null,null,null,null,null,"",""]
[null,null,null,null,null,null,null,null,null,null,null,"",""]
[null,null,null,null,null,null,null,null,null,null,null,"",""]
[null,null,null,null,null,null,null,null,null,null,null,"",""]
[null,null,null,null,null,null,null,null,null,null,null,"",""]
[null,null,null,null,null,null,null,null,null,null,null,"",""]
[null,null,null,null,null,null,null,null,null,null,null,"",""]
[null,null,null,null,null,null,null,null,null,null,null,"",""]
[null,null,null,null,null,null,null,null,null,null,null,"",""]
[null,null,null,null,null,null,null,null,null,null,null,"",""]
[null,null,null,null,null,null,null,null,null,null,null,"",""]
[null,null,null,null,null,null,null,null,null,null,null,"",""]
[null,null,null,null,null,null,null,null,null,null,null,"",""]
[null,null,null,null,null,null,null,null,null,null,null,"",""]
[null,null,null,null,null,null,null,null,null,null,null,"",""]
[null,null,null,null,null,null,null,null,null,null,null,"",""]
[null,null,null,null,null,null,null,null,null,null,null,"",""]
[null,null,null,null,null,null,null,null,null,null,null,"",""]
[null,null,null,null,null,null,null,null,null,null,null,"",""]
[null,null,null,null,null,null,null,null,null,null,null,"",""]
[null,null,null,null,null,null,null,null,null,null,null,"",""]
[null,null,null,null,null,null,null,null,null,null,null,"",""]
[null,null,null,null,null,null,null,null,null,null,null,"",""]
[null,null,null,null,null,null,null,null,null,null,null,"",""]
[null,null,null,null,null,null,null,null,null,null,null,"",""]
[null,null,null,null,null,null,null,null,null,null,null,"",""]
[null,null,null,null,null,null,null,null,null,null,null,"",""]
[null,null,null,null,null,null,null,null,null,null,null,"",""]
[null,null,null,null,null,null,null,null,null,null,null,"",""]
[null,null,null,null,null,null,null,null,null,null,null,"",""]
[null,null,null,null,null,null,null,null,null,null,null,"",""]
[null,null,null,null,null,null,null,null,null,null,null,"",""]
[null,null,null,null,null,null,null,null,null,null,null,"",""]
[null,null,null,null,null,null,null,null,null,null,null,"",""]
[null,null,null,null,null,null,null,null,null,null,null,"",""]
[null,null,null,null,null,null,null,null,null,null,null,"",""]
[null,null,null,null,null,null,null,null,null,null,null,"",""]
[null,null,null,null,null,null,null,null,null,null,null,"",""]
[null,null,null,null,null,null,null,null,null,null,null,"",""]
[null,null,null,null,null,null,null,null,null,null,null,"",""]
[null,null,null,null,null,null,null,null,null,null,null,"",""]
[null,null,null,null,null,null,null,null,null,null,null,{"$f":"IF(K389=\"Working\",\"Market\",\"\")","v":""},{"$f":"IF(K389=\"Working\",\"Cancel\",\"\")","v":""}]
[null,null,null,null,null,null,null,null,null,null,null,"",""]
[null,null,null,null,null,null,null,null,null,null,null,"",""]
[null,null,null,null,null,null,null,null,null,null,null,"",""]
[null,null,null,null,null,null,null,null,null,null,null,"",""]
[null,null,null,null,null,null,null,null,null,null,null,"",""]
[null,null,null,null,null,null,null,null,null,null,null,"",""]
[null,null,null,null,null,null,null,null,null,null,null,"",""]
[null,null,null,null,null,null,null,null,null,null,null,"",""]
[null,null,null,null,null,null,null,null,null,null,null,"",""]
[null,null,null,null,null,null,null,null,null,null,null,"",""]
[null,null,null,null,null,null,null,null,null,null,null,"",""]
[null,null,null,null,null,null,null,null,null,null,null,"",""]
[null,null,null,null,null,null,null,null,null,null,null,"",""]
[null,null,null,null,null,null,null,null,null,null,null,"",""]
[null,null,null,null,null,null,null,null,null,null,null,"",""]
[null,null,null,null,null,null,null,null,null,null,null,"",""]
[null,null,null,null,null,null,null,null,null,null,null,"",""]
[null,null,null,null,null,null,null,null,null,null,null,"",""]
[null,null,null,null,null,null,null,null,null,null,null,"",""]
[null,null,null,null,null,null,null,null,null,null,null,"",""]
[null,null,null,null,null,null,null,null,null,null,null,"",""]
[null,null,null,null,null,null,null,null,null,null,null,"",""]
[null,null,null,null,null,null,null,null,null,null,null,"",""]
[null,null,null,null,null,null,null,null,null,null,null,"",""]
[null,null,null,null,null,null,null,null,null,null,null,"",""]
[null,null,null,null,null,null,null,null,null,null,null,"",""]
[null,null,null,null,null,null,null,null,null,null,null,"",""]
[null,null,null,null,null,null,null,null,null,null,null,"",""]
[null,null,null,null,null,null,null,null,null,null,null,"",""]
[null,null,null,null,null,null,null,null,null,null,null,"",""]
[null,null,null,null,null,null,null,null,null,null,null,"",""]
[null,null,null,null,null,null,null,null,null,null,null,"",""]
[null,null,null,null,null,null,null,null,null,null,null,"",""]
[null,null,null,null,null,null,null,null,null,null,null,"",""]
[null,null,null,null,null,null,null,null,null,null,null,"",""]
[null,null,null,null,null,null,null,null,null,null,null,"",""]
[null,null,null,null,null,null,null,null,null,null,null,"",""]
[null,null,null,null,null,null,null,null,null,null,null,"",""]
[null,null,null,null,null,null,null,null,null,null,null,"",""]
[null,null,null,null,null,null,null,null,null,null,null,"",""]
[null,null,null,null,null,null,null,null,null,null,null,"",""]
[null,null,null,null,null,null,null,null,null,null,null,"",""]
[null,null,null,null,null,null,null,null,null,null,null,"",""]
[null,null,null,null,null,null,null,null,null,null,null,"",""]
[null,null,null,null,null,null,null,null,null,null,null,"",""]
[null,null,null,null,null,null,null,null,null,null,null,"",""]
[null,null,null,null,null,null,null,null,null,null,null,"",""]
[null,null,null,null,null,null,null,null,null,null,null,"",""]
[null,null,null,null,null,null,null,null,null,null,null,"",""]
[null,null,null,null,null,null,null,null,null,null,null,"",""]
[null,null,null,null,null,null,null,null,null,null,null,"",""]
[null,null,null,null,null,null,null,null,null,null,null,"",""]
[null,null,null,null,null,null,null,null,null,null,null,"",""]
[null,null,null,null,null,null,null,null,null,null,null,"",""]
[null,null,null,null,null,null,null,null,null,null,null,"",""]
[null,null,null,null,null,null,null,null,null,null,null,"",""]
[null,null,null,null,null,null,null,null,null,null,null,"",""]
[null,null,null,null,null,null,null,null,null,null,null,"",""]
[null,null,null,null,null,null,null,null,null,null,null,"",""]
[null,null,null,null,null,null,null,null,null,null,null,"",""]
[null,null,null,null,null,null,null,null,null,null,null,"",""]
[null,null,null,null,null,null,null,null,null,null,null,"",""]
[null,null,null,null,null,null,null,null,null,null,null,"",""]
[null,null,null,null,null,null,null,null,null,null,null,{"$f":"IF(K453=\"Working\",\"Market\",\"\")","v":""},{"$f":"IF(K453=\"Working\",\"Cancel\",\"\")","v":""}]
[null,null,null,null,null,null,null,null,null,null,null,"",""]
[null,null,null,null,null,null,null,null,null,null,null,"",""]
[null,null,null,null,null,null,null,null,null,null,null,"",""]
[null,null,null,null,null,null,null,null,null,null,null,"",""]
[null,null,null,null,null,null,null,null,null,null,null,"",""]
[null,null,null,null,null,null,null,null,null,null,null,"",""]
[null,null,null,null,null,null,null,null,null,null,null,"",""]
[null,null,null,null,null,null,null,null,null,null,null,"",""]
[null,null,null,null,null,null,null,null,null,null,null,"",""]
[null,null,null,null,null,null,null,null,null,null,null,"",""]
[null,null,null,null,null,null,null,null,null,null,null,"",""]
[null,null,null,null,null,null,null,null,null,null,null,"",""]
[null,null,null,null,null,null,null,null,null,null,null,"",""]
[null,null,null,null,null,null,null,null,null,null,null,"",""]
[null,null,null,null,null,null,null,null,null,null,null,"",""]
[null,null,null,null,null,null,null,null,null,null,null,"",""]
[null,null,null,null,null,null,null,null,null,null,null,"",""]
[null,null,null,null,null,null,null,null,null,null,null,"",""]
[null,null,null,null,null,null,null,null,null,null,null,"",""]
[null,null,null,null,null,null,null,null,null,null,null,"",""]
[null,null,null,null,null,null,null,null,null,null,null,"",""]
[null,null,null,null,null,null,null,null,null,null,null,"",""]
[null,null,null,null,null,null,null,null,null,null,null,"",""]
[null,null,null,null,null,null,null,null,null,null,null,"",""]
[null,null,null,null,null,null,null,null,null,null,null,"",""]
[null,null,null,null,null,null,null,null,null,null,null,"",""]
[null,null,null,null,null,null,null,null,null,null,null,"",""]
[null,null,null,null,null,null,null,null,null,null,null,"",""]
[null,null,null,null,null,null,null,null,null,null,null,"",""]
[null,null,null,null,null,null,null,null,null,null,null,"",""]
[null,null,null,null,null,null,null,null,null,null,null,"",""]
[null,null,null,null,null,null,null,null,null,null,null,"",""]
[null,null,null,null,null,null,null,null,null,null,null,"",""]
[null,null,null,null,null,null,null,null,null,null,null,"",""]
[null,null,null,null,null,null,null,null,null,null,null,"",""]
[null,null,null,null,null,null,null,null,null,null,null,"",""]
[null,null,null,null,null,null,null,null,null,null,null,"",""]
[null,null,null,null,null,null,null,null,null,null,null,"",""]
[null,null,null,null,null,null,null,null,null,null,null,"",""]
[null,null,null,null,null,null,null,null,null,null,null,"",""]
[null,null,null,null,null,null,null,null,null,null,null,"",""]
[null,null,null,null,null,null,null,null,null,null,null,"",""]
[null,null,null,null,null,null,null,null,null,null,null,"",""]
[null,null,null,null,null,null,null,null,null,null,null,"",""]
[null,null,null,null,null,null,null,null,null,null,null,"",""]
[null,null,null,null,null,null,null,null,null,null,null,"",""]
[null,null,null,null,null,null,null,null,null,null,null,"",""]
[null,null,null,null,null,null,null,null,null,null,null,"",""]
[null,null,null,null,null,null,null,null,null,null,null,"",""]
[null,null,null,null,null,null,null,null,null,null,null,"",""]
[null,null,null,null,null,null,null,null,null,null,null,"",""]
[null,null,null,null,null,null,null,null,null,null,null,"",""]
[null,null,null,null,null,null,null,null,null,null,null,"",""]
[null,null,null,null,null,null,null,null,null,null,null,"",""]
[null,null,null,null,null,null,null,null,null,null,null,"",""]
[null,null,null,null,null,null,null,null,null,null,null,"",""]
[null,null,null,null,null,null,null,null,null,null,null,"",""]
[null,null,null,null,null,null,null,null,null,null,null,"",""]
[null,null,null,null,null,null,null,null,null,null,null,"",""]
[null,null,null,null,null,null,null,null,null,null,null,"",""]
[null,null,null,null,null,null,null,null,null,null,null,"",""]
[null,null,null,null,null,null,null,null,null,null,null,"",""]
[null,null,null,null,null,null,null,null,null,null,null,"",""]
[null,null,null,null,null,null,null,null,null,null,null,{"$f":"IF(K517=\"Working\",\"Market\",\"\")","v":""},{"$f":"IF(K517=\"Working\",\"Cancel\",\"\")","v":""}]
[null,null,null,null,null,null,null,null,null,null,null,"",""]
[null,null,null,null,null,null,null,null,null,null,null,"",""]
[null,null,null,null,null,null,null,null,null,null,null,"",""]
[null,null,null,null,null,null,null,null,null,null,null,"",""]
[null,null,null,null,null,null,null,null,null,null,null,"",""]
[null,null,null,null,null,null,null,null,null,null,null,"",""]
[null,null,null,null,null,null,null,null,null,null,null,"",""]
[null,null,null,null,null,null,null,null,null,null,null,"",""]
[null,null,null,null,null,null,null,null,null,null,null,"",""]
[null,null,null,null,null,null,null,null,null,null,null,"",""]
[null,null,null,null,null,null,null,null,null,null,null,"",""]
[null,null,null,null,null,null,null,null,null,null,null,"",""]
[null,null,null,null,null,null,null,null,null,null,null,"",""]
[null,null,null,null,null,null,null,null,null,null,null,"",""]
[null,null,null,null,null,null,null,null,null,null,null,"",""]
[null,null,null,null,null,null,null,null,null,null,null,"",""]
[null,null,null,null,null,null,null,null,null,null,null,"",""]
[null,null,null,null,null,null,null,null,null,null,null,"",""]
[null,null,null,null,null,null,null,null,null,null,null,"",""]
[null,null,null,null,null,null,null,null,null,null,null,"",""]
[null,null,null,null,null,null,null,null,null,null,null,"",""]
[null,null,null,null,null,null,null,null,null,null,null,"",""]
[null,null,null,null,null,null,null,null,null,null,null,"",""]
[null,null,null,null,null,null,null,null,null,null,null,"",""]
[null,null,null,null,null,null,null,null,null,null,null,"",""]
[null,null,null,null,null,null,null,null,null,null,null,"",""]
[null,null,null,null,null,null,null,null,null,null,null,"",""]
[null,null,null,null,null,null,null,null,null,null,null,"",""]
[null,null,null,null,null,null,null,null,null,null,null,"",""]
[null,null,null,null,null,null,null,null,null,null,null,"",""]
[null,null,null,null,null,null,null,null,null,null,null,"",""]
[null,null,null,null,null,null,null,null,null,null,null,"",""]
[null,null,null,null,null,null,null,null,null,null,null,"",""]
[null,null,null,null,null,null,null,null,null,null,null,"",""]
[null,null,null,null,null,null,null,null,null,null,null,"",""]
[null,null,null,null,null,null,null,null,null,null,null,"",""]
[null,null,null,null,null,null,null,null,null,null,null,"",""]
[null,null,null,null,null,null,null,null,null,null,null,"",""]
[null,null,null,null,null,null,null,null,null,null,null,"",""]
[null,null,null,null,null,null,null,null,null,null,null,"",""]
[null,null,null,null,null,null,null,null,null,null,null,"",""]
[null,null,null,null,null,null,null,null,null,null,null,"",""]
[null,null,null,null,null,null,null,null,null,null,null,"",""]
[null,null,null,null,null,null,null,null,null,null,null,"",""]
[null,null,null,null,null,null,null,null,null,null,null,"",""]
[null,null,null,null,null,null,null,null,null,null,null,"",""]
[null,null,null,null,null,null,null,null,null,null,null,"",""]
[null,null,null,null,null,null,null,null,null,null,null,"",""]
[null,null,null,null,null,null,null,null,null,null,null,"",""]
[null,null,null,null,null,null,null,null,null,null,null,"",""]
[null,null,null,null,null,null,null,null,null,null,null,"",""]
[null,null,null,null,null,null,null,null,null,null,null,"",""]
[null,null,null,null,null,null,null,null,null,null,null,"",""]
[null,null,null,null,null,null,null,null,null,null,null,"",""]
[null,null,null,null,null,null,null,null,null,null,null,"",""]
[null,null,null,null,null,null,null,null,null,null,null,"",""]
[null,null,null,null,null,null,null,null,null,null,null,"",""]
[null,null,null,null,null,null,null,null,null,null,null,"",""]
[null,null,null,null,null,null,null,null,null,null,null,"",""]
[null,null,null,null,null,null,null,null,null,null,null,"",""]
[null,null,null,null,null,null,null,null,null,null,null,"",""]
[null,null,null,null,null,null,null,null,null,null,null,"",""]
[null,null,null,null,null,null,null,null,null,null,null,"",""]
[null,null,null,null,null,null,null,null,null,null,null,{"$f":"IF(K581=\"Working\",\"Market\",\"\")","v":""},{"$f":"IF(K581=\"Working\",\"Cancel\",\"\")","v":""}]
[null,null,null,null,null,null,null,null,null,null,null,"",""]
[null,null,null,null,null,null,null,null,null,null,null,"",""]
[null,null,null,null,null,null,null,null,null,null,null,"",""]
[null,null,null,null,null,null,null,null,null,null,null,"",""]
[null,null,null,null,null,null,null,null,null,null,null,"",""]
[null,null,null,null,null,null,null,null,null,null,null,"",""]
[null,null,null,null,null,null,null,null,null,null,null,"",""]
[null,null,null,null,null,null,null,null,null,null,null,"",""]
[null,null,null,null,null,null,null,null,null,null,null,"",""]
[null,null,null,null,null,null,null,null,null,null,null,"",""]
[null,null,null,null,null,null,null,null,null,null,null,"",""]
[null,null,null,null,null,null,null,null,null,null,null,"",""]
[null,null,null,null,null,null,null,null,null,null,null,"",""]
[null,null,null,null,null,null,null,null,null,null,null,"",""]
[null,null,null,null,null,null,null,null,null,null,null,"",""]
[null,null,null,null,null,null,null,null,null,null,null,"",""]
[null,null,null,null,null,null,null,null,null,null,null,"",""]
[null,null,null,null,null,null,null,null,null,null,null,"",""]
[null,null,null,null,null,null,null,null,null,null,null,"",""]
[null,null,null,null,null,null,null,null,null,null,null,"",""]
[null,null,null,null,null,null,null,null,null,null,null,"",""]
[null,null,null,null,null,null,null,null,null,null,null,"",""]
[null,null,null,null,null,null,null,null,null,null,null,"",""]
[null,null,null,null,null,null,null,null,null,null,null,"",""]
[null,null,null,null,null,null,null,null,null,null,null,"",""]
[null,null,null,null,null,null,null,null,null,null,null,"",""]
[null,null,null,null,null,null,null,null,null,null,null,"",""]
[null,null,null,null,null,null,null,null,null,null,null,"",""]
[null,null,null,null,null,null,null,null,null,null,null,"",""]
[null,null,null,null,null,null,null,null,null,null,null,"",""]
[null,null,null,null,null,null,null,null,null,null,null,"",""]
[null,null,null,null,null,null,null,null,null,null,null,"",""]
[null,null,null,null,null,null,null,null,null,null,null,"",""]
[null,null,null,null,null,null,null,null,null,null,null,"",""]
[null,null,null,null,null,null,null,null,null,null,null,"",""]
[null,null,null,null,null,null,null,null,null,null,null,"",""]
[null,null,null,null,null,null,null,null,null,null,null,"",""]
[null,null,null,null,null,null,null,null,null,null,null,"",""]
[null,null,null,null,null,null,null,null,null,null,null,"",""]
[null,null,null,null,null,null,null,null,null,null,null,"",""]
[null,null,null,null,null,null,null,null,null,null,null,"",""]
[null,null,null,null,null,null,null,null,null,null,null,"",""]
[null,null,null,null,null,null,null,null,null,null,null,"",""]
[null,null,null,null,null,null,null,null,null,null,null,"",""]
[null,null,null,null,null,null,null,null,null,null,null,"",""]
[null,null,null,null,null,null,null,null,null,null,null,"",""]
[null,null,null,null,null,null,null,null,null,null,null,"",""]
[null,null,null,null,null,null,null,null,null,null,null,"",""]
[null,null,null,null,null,null,null,null,null,null,null,"",""]
[null,null,null,null,null,null,null,null,null,null,null,"",""]
[null,null,null,null,null,null,null,null,null,null,null,"",""]
[null,null,null,null,null,null,null,null,null,null,null,"",""]
[null,null,null,null,null,null,null,null,null,null,null,"",""]
[null,null,null,null,null,null,null,null,null,null,null,"",""]
[null,null,null,null,null,null,null,null,null,null,null,"",""]
[null,null,null,null,null,null,null,null,null,null,null,"",""]
[null,null,null,null,null,null,null,null,null,null,null,"",""]
[null,null,null,null,null,null,null,null,null,null,null,"",""]
[null,null,null,null,null,null,null,null,null,null,null,"",""]
[null,null,null,null,null,null,null,null,null,null,null,"",""]
[null,null,null,null,null,null,null,null,null,null,null,"",""]
[null,null,null,null,null,null,null,null,null,null,null,"",""]
[null,null,null,null,null,null,null,null,null,null,null,"",""]
[null,null,null,null,null,null,null,null,null,null,null,{"$f":"IF(K645=\"Working\",\"Market\",\"\")","v":""},{"$f":"IF(K645=\"Working\",\"Cancel\",\"\")","v":""}]
[null,null,null,null,null,null,null,null,null,null,null,"",""]
[null,null,null,null,null,null,null,null,null,null,null,"",""]
[null,null,null,null,null,null,null,null,null,null,null,"",""]
[null,null,null,null,null,null,null,null,null,null,null,"",""]
[null,null,null,null,null,null,null,null,null,null,null,"",""]
[null,null,null,null,null,null,null,null,null,null,null,"",""]
[null,null,null,null,null,null,null,null,null,null,null,"",""]
[null,null,null,null,null,null,null,null,null,null,null,"",""]
[null,null,null,null,null,null,null,null,null,null,null,"",""]
[null,null,null,null,null,null,null,null,null,null,null,"",""]
[null,null,null,null,null,null,null,null,null,null,null,"",""]
[null,null,null,null,null,null,null,null,null,null,null,"",""]
[null,null,null,null,null,null,null,null,null,null,null,"",""]
[null,null,null,null,null,null,null,null,null,null,null,"",""]
[null,null,null,null,null,null,null,null,null,null,null,"",""]
[null,null,null,null,null,null,null,null,null,null,null,"",""]
[null,null,null,null,null,null,null,null,null,null,null,"",""]
[null,null,null,null,null,null,null,null,null,null,null,"",""]
[null,null,null,null,null,null,null,null,null,null,null,"",""]
[null,null,null,null,null,null,null,null,null,null,null,"",""]
[null,null,null,null,null,null,null,null,null,null,null,"",""]
[null,null,null,null,null,null,null,null,null,null,null,"",""]
[null,null,null,null,null,null,null,null,null,null,null,"",""]
[null,null,null,null,null,null,null,null,null,null,null,"",""]
[null,null,null,null,null,null,null,null,null,null,null,"",""]
[null,null,null,null,null,null,null,null,null,null,null,"",""]
[null,null,null,null,null,null,null,null,null,null,null,"",""]
[null,null,null,null,null,null,null,null,null,null,null,"",""]
[null,null,null,null,null,null,null,null,null,null,null,"",""]
[null,null,null,null,null,null,null,null,null,null,null,"",""]
[null,null,null,null,null,null,null,null,null,null,null,"",""]
[null,null,null,null,null,null,null,null,null,null,null,"",""]
[null,null,null,null,null,null,null,null,null,null,null,"",""]
[null,null,null,null,null,null,null,null,null,null,null,"",""]
[null,null,null,null,null,null,null,null,null,null,null,"",""]
[null,null,null,null,null,null,null,null,null,null,null,"",""]
[null,null,null,null,null,null,null,null,null,null,null,"",""]
[null,null,null,null,null,null,null,null,null,null,null,"",""]
[null,null,null,null,null,null,null,null,null,null,null,"",""]
[null,null,null,null,null,null,null,null,null,null,null,"",""]
[null,null,null,null,null,null,null,null,null,null,null,"",""]
[null,null,null,null,null,null,null,null,null,null,null,"",""]
[null,null,null,null,null,null,null,null,null,null,null,"",""]
[null,null,null,null,null,null,null,null,null,null,null,"",""]
[null,null,null,null,null,null,null,null,null,null,null,"",""]
[null,null,null,null,null,null,null,null,null,null,null,"",""]
[null,null,null,null,null,null,null,null,null,null,null,"",""]
[null,null,null,null,null,null,null,null,null,null,null,"",""]
[null,null,null,null,null,null,null,null,null,null,null,"",""]
[null,null,null,null,null,null,null,null,null,null,null,"",""]
[null,null,null,null,null,null,null,null,null,null,null,"",""]
[null,null,null,null,null,null,null,null,null,null,null,"",""]
[null,null,null,null,null,null,null,null,null,null,null,"",""]
[null,null,null,null,null,null,null,null,null,null,null,"",""]
[null,null,null,null,null,null,null,null,null,null,null,"",""]
[null,null,null,null,null,null,null,null,null,null,null,"",""]
[null,null,null,null,null,null,null,null,null,null,null,"",""]
[null,null,null,null,null,null,null,null,null,null,null,"",""]
[null,null,null,null,null,null,null,null,null,null,null,"",""]
[null,null,null,null,null,null,null,null,null,null,null,"",""]
[null,null,null,null,null,null,null,null,null,null,null,"",""]
[null,null,null,null,null,null,null,null,null,null,null,"",""]
[null,null,null,null,null,null,null,null,null,null,null,"",""]
[null,null,null,null,null,null,null,null,null,null,null,{"$f":"IF(K709=\"Working\",\"Market\",\"\")","v":""},{"$f":"IF(K709=\"Working\",\"Cancel\",\"\")","v":""}]
[null,null,null,null,null,null,null,null,null,null,null,"",""]
[null,null,null,null,null,null,null,null,null,null,null,"",""]
[null,null,null,null,null,null,null,null,null,null,null,"",""]
[null,null,null,null,null,null,null,null,null,null,null,"",""]
[null,null,null,null,null,null,null,null,null,null,null,"",""]
[null,null,null,null,null,null,null,null,null,null,null,"",""]
[null,null,null,null,null,null,null,null,null,null,null,"",""]
[null,null,null,null,null,null,null,null,null,null,null,"",""]
[null,null,null,null,null,null,null,null,null,null,null,"",""]
[null,null,null,null,null,null,null,null,null,null,null,"",""]
[null,null,null,null,null,null,null,null,null,null,null,"",""]
[null,null,null,null,null,null,null,null,null,null,null,"",""]
[null,null,null,null,null,null,null,null,null,null,null,"",""]
[null,null,null,null,null,null,null,null,null,null,null,"",""]
[null,null,null,null,null,null,null,null,null,null,null,"",""]
[null,null,null,null,null,null,null,null,null,null,null,"",""]
[null,null,null,null,null,null,null,null,null,null,null,"",""]
[null,null,null,null,null,null,null,null,null,null,null,"",""]
[null,null,null,null,null,null,null,null,null,null,null,"",""]
[null,null,null,null,null,null,null,null,null,null,null,"",""]
[null,null,null,null,null,null,null,null,null,null,null,"",""]
[null,null,null,null,null,null,null,null,null,null,null,"",""]
[null,null,null,null,null,null,null,null,null,null,null,"",""]
[null,null,null,null,null,null,null,null,null,null,null,"",""]
[null,null,null,null,null,null,null,null,null,null,null,"",""]
[null,null,null,null,null,null,null,null,null,null,null,"",""]
[null,null,null,null,null,null,null,null,null,null,null,"",""]
[null,null,null,null,null,null,null,null,null,null,null,"",""]
[null,null,null,null,null,null,null,null,null,null,null,"",""]
[null,null,null,null,null,null,null,null,null,null,null,"",""]
[null,null,null,null,null,null,null,null,null,null,null,"",""]
[null,null,null,null,null,null,null,null,null,null,null,"",""]
[null,null,null,null,null,null,null,null,null,null,null,"",""]
[null,null,null,null,null,null,null,null,null,null,null,"",""]
[null,null,null,null,null,null,null,null,null,null,null,"",""]
[null,null,null,null,null,null,null,null,null,null,null,"",""]
[null,null,null,null,null,null,null,null,null,null,null,"",""]
[null,null,null,null,null,null,null,null,null,null,null,"",""]
[null,null,null,null,null,null,null,null,null,null,null,"",""]
[null,null,null,null,null,null,null,null,null,null,null,"",""]
[null,null,null,null,null,null,null,null,null,null,null,"",""]
[null,null,null,null,null,null,null,null,null,null,null,"",""]
[null,null,null,null,null,null,null,null,null,null,null,"",""]
[null,null,null,null,null,null,null,null,null,null,null,"",""]
[null,null,null,null,null,null,null,null,null,null,null,"",""]
[null,null,null,null,null,null,null,null,null,null,null,"",""]
[null,null,null,null,null,null,null,null,null,null,null,"",""]
[null,null,null,null,null,null,null,null,null,null,null,"",""]
[null,null,null,null,null,null,null,null,null,null,null,"",""]
[null,null,null,null,null,null,null,null,null,null,null,"",""]
[null,null,null,null,null,null,null,null,null,null,null,"",""]
[null,null,null,null,null,null,null,null,null,null,null,"",""]
[null,null,null,null,null,null,null,null,null,null,null,"",""]
[null,null,null,null,null,null,null,null,null,null,null,"",""]
[null,null,null,null,null,null,null,null,null,null,null,"",""]
[null,null,null,null,null,null,null,null,null,null,null,"",""]
[null,null,null,null,null,null,null,null,null,null,null,"",""]
[null,null,null,null,null,null,null,null,null,null,null,"",""]
[null,null,null,null,null,null,null,null,null,null,null,"",""]
[null,null,null,null,null,null,null,null,null,null,null,"",""]
[null,null,null,null,null,null,null,null,null,null,null,"",""]
[null,null,null,null,null,null,null,null,null,null,null,"",""]
[null,null,null,null,null,null,null,null,null,null,null,"",""]
[null,null,null,null,null,null,null,null,null,null,null,{"$f":"IF(K773=\"Working\",\"Market\",\"\")","v":""},{"$f":"IF(K773=\"Working\",\"Cancel\",\"\")","v":""}]
[null,null,null,null,null,null,null,null,null,null,null,"",""]
[null,null,null,null,null,null,null,null,null,null,null,"",""]
[null,null,null,null,null,null,null,null,null,null,null,"",""]
[null,null,null,null,null,null,null,null,null,null,null,"",""]
[null,null,null,null,null,null,null,null,null,null,null,"",""]
[null,null,null,null,null,null,null,null,null,null,null,"",""]
[null,null,null,null,null,null,null,null,null,null,null,"",""]
[null,null,null,null,null,null,null,null,null,null,null,"",""]
[null,null,null,null,null,null,null,null,null,null,null,"",""]
[null,null,null,null,null,null,null,null,null,null,null,"",""]
[null,null,null,null,null,null,null,null,null,null,null,"",""]
[null,null,null,null,null,null,null,null,null,null,null,"",""]
[null,null,null,null,null,null,null,null,null,null,null,"",""]
[null,null,null,null,null,null,null,null,null,null,null,"",""]
[null,null,null,null,null,null,null,null,null,null,null,"",""]
[null,null,null,null,null,null,null,null,null,null,null,"",""]
[null,null,null,null,null,null,null,null,null,null,null,"",""]
[null,null,null,null,null,null,null,null,null,null,null,"",""]
[null,null,null,null,null,null,null,null,null,null,null,"",""]
[null,null,null,null,null,null,null,null,null,null,null,"",""]
[null,null,null,null,null,null,null,null,null,null,null,"",""]
[null,null,null,null,null,null,null,null,null,null,null,"",""]
[null,null,null,null,null,null,null,null,null,null,null,"",""]
[null,null,null,null,null,null,null,null,null,null,null,"",""]
[null,null,null,null,null,null,null,null,null,null,null,"",""]
[null,null,null,null,null,null,null,null,null,null,null,"",""]
[null,null,null,null,null,null,null,null,null,null,null,"",""]
[null,null,null,null,null,null,null,null,null,null,null,"",""]
[null,null,null,null,null,null,null,null,null,null,null,"",""]
[null,null,null,null,null,null,null,null,null,null,null,"",""]
[null,null,null,null,null,null,null,null,null,null,null,"",""]
[null,null,null,null,null,null,null,null,null,null,null,"",""]
[null,null,null,null,null,null,null,null,null,null,null,"",""]
[null,null,null,null,null,null,null,null,null,null,null,"",""]
[null,null,null,null,null,null,null,null,null,null,null,"",""]
[null,null,null,null,null,null,null,null,null,null,null,"",""]
[null,null,null,null,null,null,null,null,null,null,null,"",""]
[null,null,null,null,null,null,null,null,null,null,null,"",""]
[null,null,null,null,null,null,null,null,null,null,null,"",""]
[null,null,null,null,null,null,null,null,null,null,null,"",""]
[null,null,null,null,null,null,null,null,null,null,null,"",""]
[null,null,null,null,null,null,null,null,null,null,null,"",""]
[null,null,null,null,null,null,null,null,null,null,null,"",""]
[null,null,null,null,null,null,null,null,null,null,null,"",""]
[null,null,null,null,null,null,null,null,null,null,null,"",""]
[null,null,null,null,null,null,null,null,null,null,null,"",""]
[null,null,null,null,null,null,null,null,null,null,null,"",""]
[null,null,null,null,null,null,null,null,null,null,null,"",""]
[null,null,null,null,null,null,null,null,null,null,null,"",""]
[null,null,null,null,null,null,null,null,null,null,null,"",""]
[null,null,null,null,null,null,null,null,null,null,null,"",""]
[null,null,null,null,null,null,null,null,null,null,null,"",""]
[null,null,null,null,null,null,null,null,null,null,null,"",""]
[null,null,null,null,null,null,null,null,null,null,null,"",""]
[null,null,null,null,null,null,null,null,null,null,null,"",""]
[null,null,null,null,null,null,null,null,null,null,null,"",""]
[null,null,null,null,null,null,null,null,null,null,null,"",""]
[null,null,null,null,null,null,null,null,null,null,null,"",""]
[null,null,null,null,null,null,null,null,null,null,null,"",""]
[null,null,null,null,null,null,null,null,null,null,null,"",""]
[null,null,null,null,null,null,null,null,null,null,null,"",""]
[null,null,null,null,null,null,null,null,null,null,null,"",""]
[null,null,null,null,null,null,null,null,null,null,null,"",""]
[null,null,null,null,null,null,null,null,null,null,null,{"$f":"IF(K837=\"Working\",\"Market\",\"\")","v":""},{"$f":"IF(K837=\"Working\",\"Cancel\",\"\")","v":""}]
[null,null,null,null,null,null,null,null,null,null,null,"",""]
[null,null,null,null,null,null,null,null,null,null,null,"",""]
[null,null,null,null,null,null,null,null,null,null,null,"",""]
[null,null,null,null,null,null,null,null,null,null,null,"",""]
[null,null,null,null,null,null,null,null,null,null,null,"",""]
[null,null,null,null,null,null,null,null,null,null,null,"",""]
[null,null,null,null,null,null,null,null,null,null,null,"",""]
[null,null,null,null,null,null,null,null,null,null,null,"",""]
[null,null,null,null,null,null,null,null,null,null,null,"",""]
[null,null,null,null,null,null,null,null,null,null,null,"",""]
[null,null,null,null,null,null,null,null,null,null,null,"",""]
[null,null,null,null,null,null,null,null,null,null,null,"",""]
[null,null,null,null,null,null,null,null,null,null,null,"",""]
[null,null,null,null,null,null,null,null,null,null,null,"",""]
[null,null,null,null,null,null,null,null,null,null,null,"",""]
[null,null,null,null,null,null,null,null,null,null,null,"",""]
[null,null,null,null,null,null,null,null,null,null,null,"",""]
[null,null,null,null,null,null,null,null,null,null,null,"",""]
[null,null,null,null,null,null,null,null,null,null,null,"",""]
[null,null,null,null,null,null,null,null,null,null,null,"",""]
[null,null,null,null,null,null,null,null,null,null,null,"",""]
[null,null,null,null,null,null,null,null,null,null,null,"",""]
[null,null,null,null,null,null,null,null,null,null,null,"",""]
[null,null,null,null,null,null,null,null,null,null,null,"",""]
[null,null,null,null,null,null,null,null,null,null,null,"",""]
[null,null,null,null,null,null,null,null,null,null,null,"",""]
[null,null,null,null,null,null,null,null,null,null,null,"",""]
[null,null,null,null,null,null,null,null,null,null,null,"",""]
[null,null,null,null,null,null,null,null,null,null,null,"",""]
[null,null,null,null,null,null,null,null,null,null,null,"",""]
[null,null,null,null,null,null,null,null,null,null,null,"",""]
[null,null,null,null,null,null,null,null,null,null,null,"",""]
[null,null,null,null,null,null,null,null,null,null,null,"",""]
[null,null,null,null,null,null,null,null,null,null,null,"",""]
[null,null,null,null,null,null,null,null,null,null,null,"",""]
[null,null,null,null,null,null,null,null,null,null,null,"",""]
[null,null,null,null,null,null,null,null,null,null,null,"",""]
[null,null,null,null,null,null,null,null,null,null,null,"",""]
[null,null,null,null,null,null,null,null,null,null,null,"",""]
[null,null,null,null,null,null,null,null,null,null,null,"",""]
[null,null,null,null,null,null,null,null,null,null,null,"",""]
[null,null,null,null,null,null,null,null,null,null,null,"",""]
[null,null,null,null,null,null,null,null,null,null,null,"",""]
[null,null,null,null,null,null,null,null,null,null,null,"",""]
[null,null,null,null,null,null,null,null,null,null,null,"",""]
[null,null,null,null,null,null,null,null,null,null,null,"",""]
[null,null,null,null,null,null,null,null,null,null,null,"",""]
[null,null,null,null,null,null,null,null,null,null,null,"",""]
[null,null,null,null,null,null,null,null,null,null,null,"",""]
[null,null,null,null,null,null,null,null,null,null,null,"",""]
[null,null,null,null,null,null,null,null,null,null,null,"",""]
[null,null,null,null,null,null,null,null,null,null,null,"",""]
[null,null,null,null,null,null,null,null,null,null,null,"",""]
[null,null,null,null,null,null,null,null,null,null,null,"",""]
[null,null,null,null,null,null,null,null,null,null,null,"",""]
[null,null,null,null,null,null,null,null,null,null,null,"",""]
[null,null,null,null,null,null,null,null,null,null,null,"",""]
[null,null,null,null,null,null,null,null,null,null,null,"",""]
[null,null,null,null,null,null,null,null,null,null,null,"",""]
[null,null,null,null,null,null,null,null,null,null,null,"",""]
[null,null,null,null,null,null,null,null,null,null,null,"",""]
[null,null,null,null,null,null,null,null,null,null,null,"",""]
[null,null,null,null,null,null,null,null,null,null,null,"",""]
[null,null,null,null,null,null,null,null,null,null,null,{"$f":"IF(K901=\"Working\",\"Market\",\"\")","v":""},{"$f":"IF(K901=\"Working\",\"Cancel\",\"\")","v":""}]
[null,null,null,null,null,null,null,null,null,null,null,"",""]
[null,null,null,null,null,null,null,null,null,null,null,"",""]
[null,null,null,null,null,null,null,null,null,null,null,"",""]
[null,null,null,null,null,null,null,null,null,null,null,"",""]
[null,null,null,null,null,null,null,null,null,null,null,"",""]
[null,null,null,null,null,null,null,null,null,null,null,"",""]
[null,null,null,null,null,null,null,null,null,null,null,"",""]
[null,null,null,null,null,null,null,null,null,null,null,"",""]
[null,null,null,null,null,null,null,null,null,null,null,"",""]
[null,null,null,null,null,null,null,null,null,null,null,"",""]
[null,null,null,null,null,null,null,null,null,null,null,"",""]
[null,null,null,null,null,null,null,null,null,null,null,"",""]
[null,null,null,null,null,null,null,null,null,null,null,"",""]
[null,null,null,null,null,null,null,null,null,null,null,"",""]
[null,null,null,null,null,null,null,null,null,null,null,"",""]
[null,null,null,null,null,null,null,null,null,null,null,"",""]
[null,null,null,null,null,null,null,null,null,null,null,"",""]
[null,null,null,null,null,null,null,null,null,null,null,"",""]
[null,null,null,null,null,null,null,null,null,null,null,"",""]
[null,null,null,null,null,null,null,null,null,null,null,"",""]
[null,null,null,null,null,null,null,null,null,null,null,"",""]
[null,null,null,null,null,null,null,null,null,null,null,"",""]
[null,null,null,null,null,null,null,null,null,null,null,"",""]
[null,null,null,null,null,null,null,null,null,null,null,"",""]
[null,null,null,null,null,null,null,null,null,null,null,"",""]
[null,null,null,null,null,null,null,null,null,null,null,"",""]
[null,null,null,null,null,null,null,null,null,null,null,"",""]
[null,null,null,null,null,null,null,null,null,null,null,"",""]
[null,null,null,null,null,null,null,null,null,null,null,"",""]
[null,null,null,null,null,null,null,null,null,null,null,"",""]
[null,null,null,null,null,null,null,null,null,null,null,"",""]
[null,null,null,null,null,null,null,null,null,null,null,"",""]
[null,null,null,null,null,null,null,null,null,null,null,"",""]
[null,null,null,null,null,null,null,null,null,null,null,"",""]
[null,null,null,null,null,null,null,null,null,null,null,"",""]
[null,null,null,null,null,null,null,null,null,null,null,"",""]
[null,null,null,null,null,null,null,null,null,null,null,"",""]
[null,null,null,null,null,null,null,null,null,null,null,"",""]
[null,null,null,null,null,null,null,null,null,null,null,"",""]
[null,null,null,null,null,null,null,null,null,null,null,"",""]
[null,null,null,null,null,null,null,null,null,null,null,"",""]
[null,null,null,null,null,null,null,null,null,null,null,"",""]
[null,null,null,null,null,null,null,null,null,null,null,"",""]
[null,null,null,null,null,null,null,null,null,null,null,"",""]
[null,null,null,null,null,null,null,null,null,null,null,"",""]
[null,null,null,null,null,null,null,null,null,null,null,"",""]
[null,null,null,null,null,null,null,null,null,null,null,"",""]
[null,null,null,null,null,null,null,null,null,null,null,"",""]
[null,null,null,null,null,null,null,null,null,null,null,"",""]
[null,null,null,null,null,null,null,null,null,null,null,"",""]
[null,null,null,null,null,null,null,null,null,null,null,"",""]
[null,null,null,null,null,null,null,null,null,null,null,"",""]
[null,null,null,null,null,null,null,null,null,null,null,"",""]
[null,null,null,null,null,null,null,null,null,null,null,"",""]
[null,null,null,null,null,null,null,null,null,null,null,"",""]
[null,null,null,null,null,null,null,null,null,null,null,"",""]
[null,null,null,null,null,null,null,null,null,null,null,"",""]
[null,null,null,null,null,null,null,null,null,null,null,"",""]
[null,null,null,null,null,null,null,null,null,null,null,"",""]
[null,null,null,null,null,null,null,null,null,null,null,"",""]
[null,null,null,null,null,null,null,null,null,null,null,"",""]
[null,null,null,null,null,null,null,null,null,null,null,"",""]
[null,null,null,null,null,null,null,null,null,null,null,"",""]
[null,null,null,null,null,null,null,null,null,null,null,{"$f":"IF(K965=\"Working\",\"Market\",\"\")","v":""},{"$f":"IF(K965=\"Working\",\"Cancel\",\"\")","v":""}]
[null,null,null,null,null,null,null,null,null,null,null,"",""]
[null,null,null,null,null,null,null,null,null,null,null,"",""]
[null,null,null,null,null,null,null,null,null,null,null,"",""]
[null,null,null,null,null,null,null,null,null,null,null,"",""]
[null,null,null,null,null,null,null,null,null,null,null,"",""]
[null,null,null,null,null,null,null,null,null,null,null,"",""]
[null,null,null,null,null,null,null,null,null,null,null,"",""]
[null,null,null,null,null,null,null,null,null,null,null,"",""]
[null,null,null,null,null,null,null,null,null,null,null,"",""]
[null,null,null,null,null,null,null,null,null,null,null,"",""]
[null,null,null,null,null,null,null,null,null,null,null,"",""]
[null,null,null,null,null,null,null,null,null,null,null,"",""]
[null,null,null,null,null,null,null,null,null,null,null,"",""]
[null,null,null,null,null,null,null,null,null,null,null,"",""]
[null,null,null,null,null,null,null,null,null,null,null,"",""]
[null,null,null,null,null,null,null,null,null,null,null,"",""]
[null,null,null,null,null,null,null,null,null,null,null,"",""]
[null,null,null,null,null,null,null,null,null,null,null,"",""]
[null,null,null,null,null,null,null,null,null,null,null,"",""]
[null,null,null,null,null,null,null,null,null,null,null,"",""]
[null,null,null,null,null,null,null,null,null,null,null,"",""]
[null,null,null,null,null,null,null,null,null,null,null,"",""]
[null,null,null,null,null,null,null,null,null,null,null,"",""]
[null,null,null,null,null,null,null,null,null,null,null,"",""]
[null,null,null,null,null,null,null,null,null,null,null,"",""]
[null,null,null,null,null,null,null,null,null,null,null,"",""]
[null,null,null,null,null,null,null,null,null,null,null,"",""]
[null,null,null,null,null,null,null,null,null,null,null,"",""]
[null,null,null,null,null,null,null,null,null,null,null,"",""]
[null,null,null,null,null,null,null,null,null,null,null,"",""]
[null,null,null,null,null,null,null,null,null,null,null,"",""]
[null,null,null,null,null,null,null,null,null,null,null,"",""]
[null,null,null,null,null,null,null,null,null,null,null,"",""]
[null,null,null,null,null,null,null,null,null,null,null,"",""]
[null,null,null,null,null,null,null,null,null,null,null,"",""]

{"sheet":"Positions","index":3,"n_rows":1000,"n_cols":9,"rows_kept":1000,"cut":false,"hidden":false,"merged":[[0,0,0,3]]}
["Positions Overview"]
[]
[{"$f":"_xll.OpenAPISubscribe(\"/openapi/port/v1/positions/subscriptions/?$top={$top}\",\"ClientKey:\"&_xll.OpenAPIGetClientKey(),\"positionbase,displayandformat,positionview\",\"PositionBase.AccountId,PositionId,DisplayAndFormat.Symbol,PositionBase.AssetType,PositionBase.Amount,PositionView.ProfitLossOnTrade,PositionBase.Status\")","v":"PositionBase.AccountId"},"PositionId","DisplayAndFormat.Symbol","PositionBase.AssetType","PositionBase.Amount","PositionView.ProfitLossOnTrade","PositionBase.Status","Action","Status"]
[{"$f":"_xll.OpenAPISubscribeRtd(\"ExcelTrader_6a497986-312a-45c3-b014-b0c26bc2a29b\",\"PositionId\",\"234420023\")","v":"9073876"},"234420023","VOD:xlon","Stock",-452," ","Closed",{"$f":"IF(G4=\"Open\",\"Close\",\"\")","v":""}]
[{"$f":"_xll.OpenAPISubscribeRtd(\"ExcelTrader_6a497986-312a-45c3-b014-b0c26bc2a29b\",\"PositionId\",\"234420021\")","v":"9073876"},"234420021","NZDUSD","FxSpot",-100000,520,"Closed",{"$f":"IF(G5=\"Open\",\"Close\",\"\")","v":""}]
[{"$f":"_xll.OpenAPISubscribeRtd(\"ExcelTrader_6a497986-312a-45c3-b014-b0c26bc2a29b\",\"PositionId\",\"234420019\")","v":"9073876"},"234420019","EURHUF","FxSpot",-100000,251300,"Closed",""]
[{"$f":"_xll.OpenAPISubscribeRtd(\"ExcelTrader_6a497986-312a-45c3-b014-b0c26bc2a29b\",\"PositionId\",\"234420017\")","v":"9073876"},"234420017","EURHUF","FxSpot",-100000,238300,"Closed",""]
[{"$f":"_xll.OpenAPISubscribeRtd(\"ExcelTrader_6a497986-312a-45c3-b014-b0c26bc2a29b\",\"PositionId\",\"234420013\")","v":"9073876"},"234420013","JPYEUR","FxSpot",-150000,7.14,"Closed",""]
[{"$f":"_xll.OpenAPISubscribeRtd(\"ExcelTrader_6a497986-312a-45c3-b014-b0c26bc2a29b\",\"PositionId\",\"234420011\")","v":"9073876"},"234420011","GBPHUF","FxSpot",-100000,178700,"Closed",""]
[{"$f":"_xll.OpenAPISubscribeRtd(\"ExcelTrader_6a497986-312a-45c3-b014-b0c26bc2a29b\",\"PositionId\",\"234420009\")","v":"9073876"},"234420009","EURGBP","FxSpot",-4222,9.7100000000000009,"Closed",""]
[{"$f":"_xll.OpenAPISubscribeRtd(\"ExcelTrader_6a497986-312a-45c3-b014-b0c26bc2a29b\",\"PositionId\",\"234420007\")","v":"9073876"},"234420007","EURGBP","FxSpot",-1000000,2220,"Closed",""]
[{"$f":"_xll.OpenAPISubscribeRtd(\"ExcelTrader_6a497986-312a-45c3-b014-b0c26bc2a29b\",\"PositionId\",\"234420005\")","v":"9073876"},"234420005","EURGBP","FxSpot",-1000000,2210,"Closed",""]
[{"$f":"_xll.OpenAPISubscribeRtd(\"ExcelTrader_6a497986-312a-45c3-b014-b0c26bc2a29b\",\"PositionId\",\"234420003\")","v":"9073876"},"234420003","EURGBP","FxSpot",-100000,200,"Closed",""]
[{"$f":"_xll.OpenAPISubscribeRtd(\"ExcelTrader_6a497986-312a-45c3-b014-b0c26bc2a29b\",\"PositionId\",\"234420001\")","v":"9073876"},"234420001","EURUSD","FxSpot",50000,100,"Closed",""]
[{"$f":"_xll.OpenAPISubscribeRtd(\"ExcelTrader_6a497986-312a-45c3-b014-b0c26bc2a29b\",\"PositionId\",\"234419999\")","v":"9073876"},"234419999","EURUSD","FxSpot",10000,-1.9,"Closed",""]
[{"$f":"_xll.OpenAPISubscribeRtd(\"ExcelTrader_6a497986-312a-45c3-b014-b0c26bc2a29b\",\"PositionId\",\"234419997\")","v":"9073876"},"234419997","EURUSD","FxSpot",-10000,-22.5,"Closed",""]
[{"$f":"_xll.OpenAPISubscribeRtd(\"ExcelTrader_6a497986-312a-45c3-b014-b0c26bc2a29b\",\"PositionId\",\"234419995\")","v":"9073876"},"234419995","EURUSD","FxSpot",-10000,-22.7,"Closed",""]
[{"$f":"_xll.OpenAPISubscribeRtd(\"ExcelTrader_6a497986-312a-45c3-b014-b0c26bc2a29b\",\"PositionId\",\"234419993\")","v":"9073876"},"234419993","EURUSD","FxSpot",-10000,-22.9,"Closed",""]
[{"$f":"_xll.OpenAPISubscribeRtd(\"ExcelTrader_6a497986-312a-45c3-b014-b0c26bc2a29b\",\"PositionId\",\"234419991\")","v":"9073876"},"234419991","EURUSD","FxSpot",-10000,-22.9,"Closed",""]
[{"$f":"_xll.OpenAPISubscribeRtd(\"ExcelTrader_6a497986-312a-45c3-b014-b0c26bc2a29b\",\"PositionId\",\"234419989\")","v":"9073876"},"234419989","EURDKK","FxSpot",-100000,229,"Closed",""]
[{"$f":"_xll.OpenAPISubscribeRtd(\"ExcelTrader_6a497986-312a-45c3-b014-b0c26bc2a29b\",\"PositionId\",\"234419987\")","v":"9073876"},"234419987","EURDKK","FxSpot",-100000,209,"Closed",""]
[{"$f":"_xll.OpenAPISubscribeRtd(\"ExcelTrader_6a497986-312a-45c3-b014-b0c26bc2a29b\",\"PositionId\",\"234419985\")","v":"9073876"},"234419985","GBPEUR","FxSpot",-15000,1.8,"Closed",""]
[{"$f":"_xll.OpenAPISubscribeRtd(\"ExcelTrader_6a497986-312a-45c3-b014-b0c26bc2a29b\",\"PositionId\",\"234419983\")","v":"9073876"},"234419983","GBPEUR","FxSpot",-15000,0.75,"Closed",""]
[{"$f":"_xll.OpenAPISubscribeRtd(\"ExcelTrader_6a497986-312a-45c3-b014-b0c26bc2a29b\",\"PositionId\",\"234419981\")","v":"9073876"},"234419981","GBPEUR","FxSpot",15000,-3.6,"Closed",""]
[{"$f":"_xll.OpenAPISubscribeRtd(\"ExcelTrader_6a497986-312a-45c3-b014-b0c26bc2a29b\",\"PositionId\",\"234419979\")","v":"9073876"},"234419979","EURUSD","FxSpot",-10000,-24,"Closed",""]
[{"$f":"_xll.OpenAPISubscribeRtd(\"ExcelTrader_6a497986-312a-45c3-b014-b0c26bc2a29b\",\"PositionId\",\"234419977\")","v":"9073876"},"234419977","EURUSD","FxSpot",-10000,-24.7,"Closed",""]
[{"$f":"_xll.OpenAPISubscribeRtd(\"ExcelTrader_6a497986-312a-45c3-b014-b0c26bc2a29b\",\"PositionId\",\"234419975\")","v":"9073876"},"234419975","EURUSD","FxSpot",-10000,-1.9,"Closed",""]
[{"$f":"_xll.OpenAPISubscribeRtd(\"ExcelTrader_6a497986-312a-45c3-b014-b0c26bc2a29b\",\"PositionId\",\"234419973\")","v":"9073876"},"234419973","EURUSD","FxSpot",1500,-0.4,"Closed",""]
[{"$f":"_xll.OpenAPISubscribeRtd(\"ExcelTrader_6a497986-312a-45c3-b014-b0c26bc2a29b\",\"PositionId\",\"234419971\")","v":"9073876"},"234419971","EURUSD","FxSpot",-10000,-17.3,"Closed",""]
[{"$f":"_xll.OpenAPISubscribeRtd(\"ExcelTrader_6a497986-312a-45c3-b014-b0c26bc2a29b\",\"PositionId\",\"234419969\")","v":"9073876"},"234419969","EURUSD","FxSpot",-10000,-17.899999999999999,"Closed",""]
[{"$f":"_xll.OpenAPISubscribeRtd(\"ExcelTrader_6a497986-312a-45c3-b014-b0c26bc2a29b\",\"PositionId\",\"234419965\")","v":"9073876"},"234419965","EURUSD","FxSpot",-10000,-20.3,"Closed",""]
[{"$f":"_xll.OpenAPISubscribeRtd(\"ExcelTrader_6a497986-312a-45c3-b014-b0c26bc2a29b\",\"PositionId\",\"234419963\")","v":"9073876"},"234419963","EURUSD","FxSpot",-10000,-20.6,"Closed",""]
[{"$f":"_xll.OpenAPISubscribeRtd(\"ExcelTrader_6a497986-312a-45c3-b014-b0c26bc2a29b\",\"PositionId\",\"234419961\")","v":"9073876"},"234419961","EURUSD","FxSpot",-10000,-21.3,"Closed",""]
[{"$f":"_xll.OpenAPISubscribeRtd(\"ExcelTrader_6a497986-312a-45c3-b014-b0c26bc2a29b\",\"PositionId\",\"234419959\")","v":"9073876"},"234419959","EURUSD","FxSpot",-10000,-21.8,"Closed",""]
[{"$f":"_xll.OpenAPISubscribeRtd(\"ExcelTrader_6a497986-312a-45c3-b014-b0c26bc2a29b\",\"PositionId\",\"234419957\")","v":"9073876"},"234419957","EURUSD","FxSpot",-10000,-22.3,"Closed",""]
[{"$f":"_xll.OpenAPISubscribeRtd(\"ExcelTrader_6a497986-312a-45c3-b014-b0c26bc2a29b\",\"PositionId\",\"234419955\")","v":"9073876"},"234419955","EURUSD","FxSpot",-10000,-21.9,"Closed",""]
[{"$f":"_xll.OpenAPISubscribeRtd(\"ExcelTrader_6a497986-312a-45c3-b014-b0c26bc2a29b\",\"PositionId\",\"234419921\")","v":"9073876"},"234419921","EURUSD","FxSpot",-10000,-24.8,"Closed",""]
[{"$f":"_xll.OpenAPISubscribeRtd(\"ExcelTrader_6a497986-312a-45c3-b014-b0c26bc2a29b\",\"PositionId\",\"234419919\")","v":"9073876"},"234419919","USDJPY","FxSpot",-100000,-25400,"Closed",""]
[{"$f":"_xll.OpenAPISubscribeRtd(\"ExcelTrader_6a497986-312a-45c3-b014-b0c26bc2a29b\",\"PositionId\",\"234419917\")","v":"9073876"},"234419917","USDZAR","FxSpot",-100000,-11987,"Closed",""]
[{"$f":"_xll.OpenAPISubscribeRtd(\"ExcelTrader_6a497986-312a-45c3-b014-b0c26bc2a29b\",\"PositionId\",\"234419915\")","v":"9073876"},"234419915","EURJPY","FxSpot",-100000,-188300,"Closed",""]
[{"$f":"_xll.OpenAPISubscribeRtd(\"ExcelTrader_6a497986-312a-45c3-b014-b0c26bc2a29b\",\"PositionId\",\"234419911\")","v":"9073876"},"234419911","EURUSD","FxSpot",-10000,-22.4,"Closed",""]
[{"$f":"_xll.OpenAPISubscribeRtd(\"ExcelTrader_6a497986-312a-45c3-b014-b0c26bc2a29b\",\"PositionId\",\"234419903\")","v":"9073876_AUD"},"234419903","EURUSD","FxSpot",-50000,-14,"Closed",""]
[{"$f":"_xll.OpenAPISubscribeRtd(\"ExcelTrader_6a497986-312a-45c3-b014-b0c26bc2a29b\",\"PositionId\",\"234419901\")","v":"9073876_USD"},"234419901","EURUSD","FxSpot",15002,-2.7,"Closed",""]
[{"$f":"_xll.OpenAPISubscribeRtd(\"ExcelTrader_6a497986-312a-45c3-b014-b0c26bc2a29b\",\"PositionId\",\"234419791\")","v":"9073876_USD"},"234419791","EURUSD","FxSpot",15000,188.25,"Closed",""]
[{"$f":"_xll.OpenAPISubscribeRtd(\"ExcelTrader_6a497986-312a-45c3-b014-b0c26bc2a29b\",\"PositionId\",\"234419783\")","v":"9073876_USD"},"234419783","EURUSD","FxSpot",25000,-11.5,"Closed",""]
[{"$f":"_xll.OpenAPISubscribeRtd(\"ExcelTrader_6a497986-312a-45c3-b014-b0c26bc2a29b\",\"PositionId\",\"234419779\")","v":"9073876"},"234419779","GBPEUR","FxSpot",15000,0.75,"Closed",""]
[{"$f":"_xll.OpenAPISubscribeRtd(\"ExcelTrader_6a497986-312a-45c3-b014-b0c26bc2a29b\",\"PositionId\",\"234419775\")","v":"9073876"},"234419775","GBPEUR","FxSpot",15000,1.8,"Closed",""]
[{"$f":"_xll.OpenAPISubscribeRtd(\"ExcelTrader_6a497986-312a-45c3-b014-b0c26bc2a29b\",\"PositionId\",\"234419769\")","v":"9073876"},"234419769","GBPEUR","FxSpot",-15000,-3.6,"Closed",""]
[{"$f":"_xll.OpenAPISubscribeRtd(\"ExcelTrader_6a497986-312a-45c3-b014-b0c26bc2a29b\",\"PositionId\",\"234419765\")","v":"9073876_USD"},"234419765","EURUSD","FxSpot",-15002,-2.7,"Closed",""]
[{"$f":"_xll.OpenAPISubscribeRtd(\"ExcelTrader_6a497986-312a-45c3-b014-b0c26bc2a29b\",\"PositionId\",\"234419759\")","v":"9073876_USD"},"234419759","EURUSD","FxSpot",-25000,-11.5,"Closed",""]
[{"$f":"_xll.OpenAPISubscribeRtd(\"ExcelTrader_6a497986-312a-45c3-b014-b0c26bc2a29b\",\"PositionId\",\"234419735\")","v":"9073876"},"234419735","EURUSD","FxSpot",-1500,-0.4,"Closed",""]
[{"$f":"_xll.OpenAPISubscribeRtd(\"ExcelTrader_6a497986-312a-45c3-b014-b0c26bc2a29b\",\"PositionId\",\"234419679\")","v":"9073876_AUD"},"234419679","EURUSD","FxSpot",50000,-14,"Closed",""]
[{"$f":"_xll.OpenAPISubscribeRtd(\"ExcelTrader_6a497986-312a-45c3-b014-b0c26bc2a29b\",\"PositionId\",\"234419521\")","v":"9073876_USD"},"234419521","EURUSD","FxSpot",15000,193.8,"Closed",""]
[{"$f":"_xll.OpenAPISubscribeRtd(\"ExcelTrader_6a497986-312a-45c3-b014-b0c26bc2a29b\",\"PositionId\",\"234419519\")","v":"9073876"},"234419519","EURGBP","FxSpot",-100000,147,"Closed",""]
[{"$f":"_xll.OpenAPISubscribeRtd(\"ExcelTrader_6a497986-312a-45c3-b014-b0c26bc2a29b\",\"PositionId\",\"234419517\")","v":"9073876"},"234419517","EURUSD","FxSpot",-1000000,-2050,"Closed",""]
[{"$f":"_xll.OpenAPISubscribeRtd(\"ExcelTrader_6a497986-312a-45c3-b014-b0c26bc2a29b\",\"PositionId\",\"234419513\")","v":"9073876_USD"},"234419513","EURUSD","FxSpot",-100000,-230,"Closed",""]
[{"$f":"_xll.OpenAPISubscribeRtd(\"ExcelTrader_6a497986-312a-45c3-b014-b0c26bc2a29b\",\"PositionId\",\"234419511\")","v":"9073876"},"234419511","EURUSD","FxSpot",-10000,-20,"Closed",""]
[{"$f":"_xll.OpenAPISubscribeRtd(\"ExcelTrader_6a497986-312a-45c3-b014-b0c26bc2a29b\",\"PositionId\",\"234419509\")","v":"9073876_AUD"},"234419509","VOD:xlon","Stock",-751," ","Closed",""]
[{"$f":"_xll.OpenAPISubscribeRtd(\"ExcelTrader_6a497986-312a-45c3-b014-b0c26bc2a29b\",\"PositionId\",\"234419507\")","v":"9073876"},"234419507","EURUSD","FxSpot",-10000,-24.4,"Closed",""]
[{"$f":"_xll.OpenAPISubscribeRtd(\"ExcelTrader_6a497986-312a-45c3-b014-b0c26bc2a29b\",\"PositionId\",\"234419505\")","v":"9073876"},"234419505","GBPUSD","FxSpot",-100000,-1942,"Closed",""]
[{"$f":"_xll.OpenAPISubscribeRtd(\"ExcelTrader_6a497986-312a-45c3-b014-b0c26bc2a29b\",\"PositionId\",\"234419503\")","v":"9073876_USD"},"234419503","EURUSD","FxSpot",15000,195.6,"Closed",""]
[{"$f":"_xll.OpenAPISubscribeRtd(\"ExcelTrader_6a497986-312a-45c3-b014-b0c26bc2a29b\",\"PositionId\",\"234419499\")","v":"9073876_USD"},"234419499","EURUSD","FxSpot",15000,195.6,"Closed",""]
[{"$f":"_xll.OpenAPISubscribeRtd(\"ExcelTrader_6a497986-312a-45c3-b014-b0c26bc2a29b\",\"PositionId\",\"234419469\")","v":"9073876"},"234419469","EURDKK","FxSpot",-100000,237,"Closed",""]
[{"$f":"_xll.OpenAPISubscribeRtd(\"ExcelTrader_6a497986-312a-45c3-b014-b0c26bc2a29b\",\"PositionId\",\"234419443\")","v":"9073876"},"234419443","EURUSD","FxSpot",-1500,0.02,"Closed",""]
[{"$f":"_xll.OpenAPISubscribeRtd(\"ExcelTrader_6a497986-312a-45c3-b014-b0c26bc2a29b\",\"PositionId\",\"234419435\")","v":"9073876"},"234419435","EURUSD","FxSpot",1500,0.02,"Closed",""]
[{"$f":"_xll.OpenAPISubscribeRtd(\"ExcelTrader_6a497986-312a-45c3-b014-b0c26bc2a29b\",\"PositionId\",\"234410763\")","v":"9073876"},"234410763","EURUSD","FxSpot",-50000,100,"Closed",""]
[{"$f":"_xll.OpenAPISubscribeRtd(\"ExcelTrader_6a497986-312a-45c3-b014-b0c26bc2a29b\",\"PositionId\",\"234409991\")","v":"9073876"},"234409991","EURUSD","FxSpot",1000000,-2050,"Closed",""]
[{"$f":"_xll.OpenAPISubscribeRtd(\"ExcelTrader_6a497986-312a-45c3-b014-b0c26bc2a29b\",\"PositionId\",\"234403877\")","v":"9073876_USD"},"234403877","EURUSD","FxSpot",100000,-230,"Closed",""]
[{"$f":"_xll.OpenAPISubscribeRtd(\"ExcelTrader_6a497986-312a-45c3-b014-b0c26bc2a29b\",\"PositionId\",\"234211569\")","v":"9073876_AUD"},"234211569","VOD:xlon","Stock",751," ","Closed",{"$f":"IF(G69=\"Open\",\"Close\",\"\")","v":""}]
[{"$f":"_xll.OpenAPISubscribeRtd(\"ExcelTrader_6a497986-312a-45c3-b014-b0c26bc2a29b\",\"PositionId\",\"234211563\")","v":"9073876"},"234211563","VOD:xlon","Stock",452," ","Closed",""]
[{"$f":"_xll.OpenAPISubscribeRtd(\"ExcelTrader_6a497986-312a-45c3-b014-b0c26bc2a29b\",\"PositionId\",\"234137933\")","v":"9073876"},"234137933","EURUSD","FxSpot",10000,-17.899999999999999,"Closed",""]
[{"$f":"_xll.OpenAPISubscribeRtd(\"ExcelTrader_6a497986-312a-45c3-b014-b0c26bc2a29b\",\"PositionId\",\"234137911\")","v":"9073876"},"234137911","EURUSD","FxSpot",10000,-17.3,"Closed",{"$f":"IF(G72=\"Open\",\"Close\",\"\")","v":""}]
[{"$f":"_xll.OpenAPISubscribeRtd(\"ExcelTrader_6a497986-312a-45c3-b014-b0c26bc2a29b\",\"PositionId\",\"234137871\")","v":"9073876"},"234137871","EURUSD","FxSpot",10000,-20,"Closed",{"$f":"IF(G73=\"Open\",\"Close\",\"\")","v":""}]
[{"$f":"_xll.OpenAPISubscribeRtd(\"ExcelTrader_6a497986-312a-45c3-b014-b0c26bc2a29b\",\"PositionId\",\"234137817\")","v":"9073876"},"234137817","EURUSD","FxSpot",10000,-21.8,"Closed",""]
[{"$f":"_xll.OpenAPISubscribeRtd(\"ExcelTrader_6a497986-312a-45c3-b014-b0c26bc2a29b\",\"PositionId\",\"234137803\")","v":"9073876"},"234137803","EURUSD","FxSpot",10000,-20.3,"Closed",""]
[{"$f":"_xll.OpenAPISubscribeRtd(\"ExcelTrader_6a497986-312a-45c3-b014-b0c26bc2a29b\",\"PositionId\",\"234137787\")","v":"9073876"},"234137787","EURUSD","FxSpot",10000,-20.6,"Closed",""]
[{"$f":"_xll.OpenAPISubscribeRtd(\"ExcelTrader_6a497986-312a-45c3-b014-b0c26bc2a29b\",\"PositionId\",\"234137749\")","v":"9073876"},"234137749","EURUSD","FxSpot",10000,-21.3,"Closed",""]
[{"$f":"_xll.OpenAPISubscribeRtd(\"ExcelTrader_6a497986-312a-45c3-b014-b0c26bc2a29b\",\"PositionId\",\"234137735\")","v":"9073876"},"234137735","EURUSD","FxSpot",10000,-22.3,"Closed",""]
[{"$f":"_xll.OpenAPISubscribeRtd(\"ExcelTrader_6a497986-312a-45c3-b014-b0c26bc2a29b\",\"PositionId\",\"234137703\")","v":"9073876"},"234137703","EURUSD","FxSpot",10000,-21.9,"Closed",""]
[{"$f":"_xll.OpenAPISubscribeRtd(\"ExcelTrader_6a497986-312a-45c3-b014-b0c26bc2a29b\",\"PositionId\",\"234137667\")","v":"9073876"},"234137667","EURUSD","FxSpot",10000,-22.4,"Closed",""]
[{"$f":"_xll.OpenAPISubscribeRtd(\"ExcelTrader_6a497986-312a-45c3-b014-b0c26bc2a29b\",\"PositionId\",\"234137655\")","v":"9073876"},"234137655","EURUSD","FxSpot",10000,-24.8,"Closed",""]
[{"$f":"_xll.OpenAPISubscribeRtd(\"ExcelTrader_6a497986-312a-45c3-b014-b0c26bc2a29b\",\"PositionId\",\"234137635\")","v":"9073876"},"234137635","EURUSD","FxSpot",10000,-22.7,"Closed",""]
[{"$f":"_xll.OpenAPISubscribeRtd(\"ExcelTrader_6a497986-312a-45c3-b014-b0c26bc2a29b\",\"PositionId\",\"234137499\")","v":"9073876"},"234137499","EURUSD","FxSpot",10000,-22.5,"Closed",""]
[{"$f":"_xll.OpenAPISubscribeRtd(\"ExcelTrader_6a497986-312a-45c3-b014-b0c26bc2a29b\",\"PositionId\",\"234137481\")","v":"9073876"},"234137481","EURUSD","FxSpot",10000,-24.7,"Closed",""]
[{"$f":"_xll.OpenAPISubscribeRtd(\"ExcelTrader_6a497986-312a-45c3-b014-b0c26bc2a29b\",\"PositionId\",\"234137451\")","v":"9073876"},"234137451","EURUSD","FxSpot",10000,-24,"Closed",""]
[{"$f":"_xll.OpenAPISubscribeRtd(\"ExcelTrader_6a497986-312a-45c3-b014-b0c26bc2a29b\",\"PositionId\",\"234137439\")","v":"9073876"},"234137439","EURUSD","FxSpot",10000,-22.9,"Closed",""]
[{"$f":"_xll.OpenAPISubscribeRtd(\"ExcelTrader_6a497986-312a-45c3-b014-b0c26bc2a29b\",\"PositionId\",\"234137195\")","v":"9073876"},"234137195","EURUSD","FxSpot",10000,-24.4,"Closed",""]
[{"$f":"_xll.OpenAPISubscribeRtd(\"ExcelTrader_6a497986-312a-45c3-b014-b0c26bc2a29b\",\"PositionId\",\"234137181\")","v":"9073876"},"234137181","EURUSD","FxSpot",10000,-22.9,"Closed",""]
[{"$f":"_xll.OpenAPISubscribeRtd(\"ExcelTrader_6a497986-312a-45c3-b014-b0c26bc2a29b\",\"PositionId\",\"234032387\")","v":"9073876"},"234032387","NZDUSD","FxSpot",100000,520,"Closed",""]
[{"$f":"_xll.OpenAPISubscribeRtd(\"ExcelTrader_6a497986-312a-45c3-b014-b0c26bc2a29b\",\"PositionId\",\"234031031\")","v":"9073876"},"234031031","GBPHUF","FxSpot",100000,178700,"Closed",""]
[{"$f":"_xll.OpenAPISubscribeRtd(\"ExcelTrader_6a497986-312a-45c3-b014-b0c26bc2a29b\",\"PositionId\",\"234027805\")","v":"9073876"},"234027805","USDZAR","FxSpot",100000,-11987,"Closed",""]
[{"$f":"_xll.OpenAPISubscribeRtd(\"ExcelTrader_6a497986-312a-45c3-b014-b0c26bc2a29b\",\"PositionId\",\"234027405\")","v":"9073876"},"234027405","EURGBP","FxSpot",100000,147,"Closed",""]
[{"$f":"_xll.OpenAPISubscribeRtd(\"ExcelTrader_6a497986-312a-45c3-b014-b0c26bc2a29b\",\"PositionId\",\"234027263\")","v":"9073876"},"234027263","EURHUF","FxSpot",100000,238300,"Closed",""]
[{"$f":"_xll.OpenAPISubscribeRtd(\"ExcelTrader_6a497986-312a-45c3-b014-b0c26bc2a29b\",\"PositionId\",\"234026829\")","v":"9073876"},"234026829","EURGBP","FxSpot",100000,200,"Closed",""]
[{"$f":"_xll.OpenAPISubscribeRtd(\"ExcelTrader_6a497986-312a-45c3-b014-b0c26bc2a29b\",\"PositionId\",\"234026805\")","v":"9073876"},"234026805","GBPUSD","FxSpot",100000,-1942,"Closed",""]
[{"$f":"_xll.OpenAPISubscribeRtd(\"ExcelTrader_6a497986-312a-45c3-b014-b0c26bc2a29b\",\"PositionId\",\"234026217\")","v":"9073876"},"234026217","EURDKK","FxSpot",100000,209,"Closed",""]
[{"$f":"_xll.OpenAPISubscribeRtd(\"ExcelTrader_6a497986-312a-45c3-b014-b0c26bc2a29b\",\"PositionId\",\"234025725\")","v":"9073876"},"234025725","USDJPY","FxSpot",100000,-25400,"Closed",""]
[{"$f":"_xll.OpenAPISubscribeRtd(\"ExcelTrader_6a497986-312a-45c3-b014-b0c26bc2a29b\",\"PositionId\",\"234025641\")","v":"9073876"},"234025641","EURHUF","FxSpot",100000,251300,"Closed",""]
[{"$f":"_xll.OpenAPISubscribeRtd(\"ExcelTrader_6a497986-312a-45c3-b014-b0c26bc2a29b\",\"PositionId\",\"234025615\")","v":"9073876"},"234025615","EURJPY","FxSpot",100000,-188300,"Closed",""]
[{"$f":"_xll.OpenAPISubscribeRtd(\"ExcelTrader_6a497986-312a-45c3-b014-b0c26bc2a29b\",\"PositionId\",\"234025399\")","v":"9073876"},"234025399","EURDKK","FxSpot",100000,229,"Closed",""]
[{"$f":"_xll.OpenAPISubscribeRtd(\"ExcelTrader_6a497986-312a-45c3-b014-b0c26bc2a29b\",\"PositionId\",\"234001145\")","v":"9073876"},"234001145","EURGBP","FxSpot",1000000,2210,"Closed",""]
[{"$f":"_xll.OpenAPISubscribeRtd(\"ExcelTrader_6a497986-312a-45c3-b014-b0c26bc2a29b\",\"PositionId\",\"234000925\")","v":"9073876"},"234000925","EURGBP","FxSpot",1000000,2220,"Closed",""]
[{"$f":"_xll.OpenAPISubscribeRtd(\"ExcelTrader_6a497986-312a-45c3-b014-b0c26bc2a29b\",\"PositionId\",\"234000917\")","v":"9073876"},"234000917","EURGBP","FxSpot",4222,9.7100000000000009,"Closed",""]
[{"$f":"_xll.OpenAPISubscribeRtd(\"ExcelTrader_6a497986-312a-45c3-b014-b0c26bc2a29b\",\"PositionId\",\"233738327\")","v":"9073876"},"233738327","EURDKK","FxSpot",100000,237,"Closed",""]
[{"$f":"_xll.OpenAPISubscribeRtd(\"ExcelTrader_6a497986-312a-45c3-b014-b0c26bc2a29b\",\"PositionId\",\"232007701\")","v":"9073876"},"232007701","AAPL:xnas","Stock",50," ","Closing",""]
[{"$f":"_xll.OpenAPISubscribeRtd(\"ExcelTrader_6a497986-312a-45c3-b014-b0c26bc2a29b\",\"PositionId\",\"231831127\")","v":"9073876_USD"},"231831127","AUDUSD","FxSpot",350000,1732.5,"Open","Close"]
[{"$f":"_xll.OpenAPISubscribeRtd(\"ExcelTrader_6a497986-312a-45c3-b014-b0c26bc2a29b\",\"PositionId\",\"231831123\")","v":"9073876_USD"},"231831123","AUDUSD","FxSpot",350000,1732.5,"Open","Close"]
[{"$f":"_xll.OpenAPISubscribeRtd(\"ExcelTrader_6a497986-312a-45c3-b014-b0c26bc2a29b\",\"PositionId\",\"229980741\")","v":"9073876_USD"},"229980741","EURUSD","FxSpot",-15000,191.55,"Open","Close"]
[{"$f":"_xll.OpenAPISubscribeRtd(\"ExcelTrader_6a497986-312a-45c3-b014-b0c26bc2a29b\",\"PositionId\",\"229980737\")","v":"9073876_USD"},"229980737","EURUSD","FxSpot",-15000,193.8,"Closed",""]
[{"$f":"_xll.OpenAPISubscribeRtd(\"ExcelTrader_6a497986-312a-45c3-b014-b0c26bc2a29b\",\"PositionId\",\"229980735\")","v":"9073876_USD"},"229980735","EURUSD","FxSpot",-15000,191.7,"Open","Close"]
[{"$f":"_xll.OpenAPISubscribeRtd(\"ExcelTrader_6a497986-312a-45c3-b014-b0c26bc2a29b\",\"PositionId\",\"229980733\")","v":"9073876_USD"},"229980733","EURUSD","FxSpot",-15000,188.25,"Closed",""]
[{"$f":"_xll.OpenAPISubscribeRtd(\"ExcelTrader_6a497986-312a-45c3-b014-b0c26bc2a29b\",\"PositionId\",\"229980731\")","v":"9073876_USD"},"229980731","EURUSD","FxSpot",-15000,191.85,"Open","Close"]
[{"$f":"_xll.OpenAPISubscribeRtd(\"ExcelTrader_6a497986-312a-45c3-b014-b0c26bc2a29b\",\"PositionId\",\"229980729\")","v":"9073876_USD"},"229980729","EURUSD","FxSpot",-15000,195.6,"Closed",""]
[{"$f":"_xll.OpenAPISubscribeRtd(\"ExcelTrader_6a497986-312a-45c3-b014-b0c26bc2a29b\",\"PositionId\",\"229980727\")","v":"9073876_USD"},"229980727","EURUSD","FxSpot",-15000,195.6,"Closed",""]
[{"$f":"_xll.OpenAPISubscribeRtd(\"ExcelTrader_6a497986-312a-45c3-b014-b0c26bc2a29b\",\"PositionId\",\"229980725\")","v":"9073876_USD"},"229980725","EURUSD","FxSpot",-15000,191.85,"Open","Close"]
[{"$f":"_xll.OpenAPISubscribeRtd(\"ExcelTrader_6a497986-312a-45c3-b014-b0c26bc2a29b\",\"PositionId\",\"229980723\")","v":"9073876_USD"},"229980723","EURUSD","FxSpot",-15000,191.85,"Open","Close"]
[{"$f":"_xll.OpenAPISubscribeRtd(\"ExcelTrader_6a497986-312a-45c3-b014-b0c26bc2a29b\",\"PositionId\",\"228500689\")","v":"9073876"},"228500689","JPYEUR","FxSpot",150000,7.14,"Closed",""]
[null,null,null,null,null,null,null,""]
[null,null,null,null,null,null,null,""]
[null,null,null,null,null,null,null,""]
[null,null,null,null,null,null,null,""]
[null,null,null,null,null,null,null,""]
[null,null,null,null,null,null,null,""]
[null,null,null,null,null,null,null,""]
[null,null,null,null,null,null,null,""]
[null,null,null,null,null,null,null,""]
[null,null,null,null,null,null,null,""]
[null,null,null,null,null,null,null,""]
[null,null,null,null,null,null,null,""]
[null,null,null,null,null,null,null,""]
[null,null,null,null,null,null,null,""]
[null,null,null,null,null,null,null,""]
[null,null,null,null,null,null,null,""]
[null,null,null,null,null,null,null,""]
[null,null,null,null,null,null,null,""]
[null,null,null,null,null,null,null,""]
[null,null,null,null,null,null,null,{"$f":"IF(G137=\"Open\",\"Close\",\"\")","v":""}]
[null,null,null,null,null,null,null,""]
[null,null,null,null,null,null,null,""]
[null,null,null,null,null,null,null,""]
[null,null,null,null,null,null,null,""]
[null,null,null,null,null,null,null,""]
[null,null,null,null,null,null,null,""]
[null,null,null,null,null,null,null,""]
[null,null,null,null,null,null,null,""]
[null,null,null,null,null,null,null,""]
[null,null,null,null,null,null,null,""]
[null,null,null,null,null,null,null,""]
[null,null,null,null,null,null,null,""]
[null,null,null,null,null,null,null,""]
[null,null,null,null,null,null,null,""]
[null,null,null,null,null,null,null,""]
[null,null,null,null,null,null,null,""]
[null,null,null,null,null,null,null,""]
[null,null,null,null,null,null,null,""]
[null,null,null,null,null,null,null,""]
[null,null,null,null,null,null,null,""]
[null,null,null,null,null,null,null,""]
[null,null,null,null,null,null,null,""]
[null,null,null,null,null,null,null,""]
[null,null,null,null,null,null,null,""]
[null,null,null,null,null,null,null,""]
[null,null,null,null,null,null,null,""]
[null,null,null,null,null,null,null,""]
[null,null,null,null,null,null,null,""]
[null,null,null,null,null,null,null,""]
[null,null,null,null,null,null,null,""]
[null,null,null,null,null,null,null,""]
[null,null,null,null,null,null,null,""]
[null,null,null,null,null,null,null,""]
[null,null,null,null,null,null,null,""]
[null,null,null,null,null,null,null,""]
[null,null,null,null,null,null,null,""]
[null,null,null,null,null,null,null,""]
[null,null,null,null,null,null,null,""]
[null,null,null,null,null,null,null,""]
[null,null,null,null,null,null,null,""]
[null,null,null,null,null,null,null,""]
[null,null,null,null,null,null,null,""]
[null,null,null,null,null,null,null,""]
[null,null,null,null,null,null,null,""]
[null,null,null,null,null,null,null,""]
[null,null,null,null,null,null,null,""]
[null,null,null,null,null,null,null,""]
[null,null,null,null,null,null,null,""]
[null,null,null,null,null,null,null,""]
[null,null,null,null,null,null,null,""]
[null,null,null,null,null,null,null,""]
[null,null,null,null,null,null,null,""]
[null,null,null,null,null,null,null,""]
[null,null,null,null,null,null,null,""]
[null,null,null,null,null,null,null,""]
[null,null,null,null,null,null,null,""]
[null,null,null,null,null,null,null,""]
[null,null,null,null,null,null,null,""]
[null,null,null,null,null,null,null,""]
[null,null,null,null,null,null,null,""]
[null,null,null,null,null,null,null,""]
[null,null,null,null,null,null,null,""]
[null,null,null,null,null,null,null,""]
[null,null,null,null,null,null,null,{"$f":"IF(G201=\"Open\",\"Close\",\"\")","v":""}]
[null,null,null,null,null,null,null,""]
[null,null,null,null,null,null,null,""]
[null,null,null,null,null,null,null,""]
[null,null,null,null,null,null,null,""]
[null,null,null,null,null,null,null,""]
[null,null,null,null,null,null,null,""]
[null,null,null,null,null,null,null,""]
[null,null,null,null,null,null,null,""]
[null,null,null,null,null,null,null,""]
[null,null,null,null,null,null,null,""]
[null,null,null,null,null,null,null,""]
[null,null,null,null,null,null,null,""]
[null,null,null,null,null,null,null,""]
[null,null,null,null,null,null,null,""]
[null,null,null,null,null,null,null,""]
[null,null,null,null,null,null,null,""]
[null,null,null,null,null,null,null,""]
[null,null,null,null,null,null,null,""]
[null,null,null,null,null,null,null,""]
[null,null,null,null,null,null,null,""]
[null,null,null,null,null,null,null,""]
[null,null,null,null,null,null,null,""]
[null,null,null,null,null,null,null,""]
[null,null,null,null,null,null,null,""]
[null,null,null,null,null,null,null,""]
[null,null,null,null,null,null,null,""]
[null,null,null,null,null,null,null,""]
[null,null,null,null,null,null,null,""]
[null,null,null,null,null,null,null,""]
[null,null,null,null,null,null,null,""]
[null,null,null,null,null,null,null,""]
[null,null,null,null,null,null,null,""]
[null,null,null,null,null,null,null,""]
[null,null,null,null,null,null,null,""]
[null,null,null,null,null,null,null,""]
[null,null,null,null,null,null,null,""]
[null,null,null,null,null,null,null,""]
[null,null,null,null,null,null,null,""]
[null,null,null,null,null,null,null,""]
[null,null,null,null,null,null,null,""]
[null,null,null,null,null,null,null,""]
[null,null,null,null,null,null,null,""]
[null,null,null,null,null,null,null,""]
[null,null,null,null,null,null,null,""]
[null,null,null,null,null,null,null,""]
[null,null,null,null,null,null,null,""]
[null,null,null,null,null,null,null,""]
[null,null,null,null,null,null,null,""]
[null,null,null,null,null,null,null,""]
[null,null,null,null,null,null,null,""]
[null,null,null,null,null,null,null,""]
[null,null,null,null,null,null,null,""]
[null,null,null,null,null,null,null,""]
[null,null,null,null,null,null,null,""]
[null,null,null,null,null,null,null,""]
[null,null,null,null,null,null,null,""]
[null,null,null,null,null,null,null,""]
[null,null,null,null,null,null,null,""]
[null,null,null,null,null,null,null,""]
[null,null,null,null,null,null,null,""]
[null,null,null,null,null,null,null,""]
[null,null,null,null,null,null,null,""]
[null,null,null,null,null,null,null,""]
[null,null,null,null,null,null,null,{"$f":"IF(G265=\"Open\",\"Close\",\"\")","v":""}]
[null,null,null,null,null,null,null,""]
[null,null,null,null,null,null,null,""]
[null,null,null,null,null,null,null,""]
[null,null,null,null,null,null,null,""]
[null,null,null,null,null,null,null,""]
[null,null,null,null,null,null,null,""]
[null,null,null,null,null,null,null,""]
[null,null,null,null,null,null,null,""]
[null,null,null,null,null,null,null,""]
[null,null,null,null,null,null,null,""]
[null,null,null,null,null,null,null,""]
[null,null,null,null,null,null,null,""]
[null,null,null,null,null,null,null,""]
[null,null,null,null,null,null,null,""]
[null,null,null,null,null,null,null,""]
[null,null,null,null,null,null,null,""]
[null,null,null,null,null,null,null,""]
[null,null,null,null,null,null,null,""]
[null,null,null,null,null,null,null,""]
[null,null,null,null,null,null,null,""]
[null,null,null,null,null,null,null,""]
[null,null,null,null,null,null,null,""]
[null,null,null,null,null,null,null,""]
[null,null,null,null,null,null,null,""]
[null,null,null,null,null,null,null,""]
[null,null,null,null,null,null,null,""]
[null,null,null,null,null,null,null,""]
[null,null,null,null,null,null,null,""]
[null,null,null,null,null,null,null,""]
[null,null,null,null,null,null,null,""]
[null,null,null,null,null,null,null,""]
[null,null,null,null,null,null,null,""]
[null,null,null,null,null,null,null,""]
[null,null,null,null,null,null,null,""]
[null,null,null,null,null,null,null,""]
[null,null,null,null,null,null,null,""]
[null,null,null,null,null,null,null,""]
[null,null,null,null,null,null,null,""]
[null,null,null,null,null,null,null,""]
[null,null,null,null,null,null,null,""]
[null,null,null,null,null,null,null,""]
[null,null,null,null,null,null,null,""]
[null,null,null,null,null,null,null,""]
[null,null,null,null,null,null,null,""]
[null,null,null,null,null,null,null,""]
[null,null,null,null,null,null,null,""]
[null,null,null,null,null,null,null,""]
[null,null,null,null,null,null,null,""]
[null,null,null,null,null,null,null,""]
[null,null,null,null,null,null,null,""]
[null,null,null,null,null,null,null,""]
[null,null,null,null,null,null,null,""]
[null,null,null,null,null,null,null,""]
[null,null,null,null,null,null,null,""]
[null,null,null,null,null,null,null,""]
[null,null,null,null,null,null,null,""]
[null,null,null,null,null,null,null,""]
[null,null,null,null,null,null,null,""]
[null,null,null,null,null,null,null,""]
[null,null,null,null,null,null,null,""]
[null,null,null,null,null,null,null,""]
[null,null,null,null,null,null,null,""]
[null,null,null,null,null,null,null,""]
[null,null,null,null,null,null,null,{"$f":"IF(G329=\"Open\",\"Close\",\"\")","v":""}]
[null,null,null,null,null,null,null,""]
[null,null,null,null,null,null,null,""]
[null,null,null,null,null,null,null,""]
[null,null,null,null,null,null,null,""]
[null,null,null,null,null,null,null,""]
[null,null,null,null,null,null,null,""]
[null,null,null,null,null,null,null,""]
[null,null,null,null,null,null,null,""]
[null,null,null,null,null,null,null,""]
[null,null,null,null,null,null,null,""]
[null,null,null,null,null,null,null,""]
[null,null,null,null,null,null,null,""]
[null,null,null,null,null,null,null,""]
[null,null,null,null,null,null,null,""]
[null,null,null,null,null,null,null,""]
[null,null,null,null,null,null,null,""]
[null,null,null,null,null,null,null,""]
[null,null,null,null,null,null,null,""]
[null,null,null,null,null,null,null,""]
[null,null,null,null,null,null,null,""]
[null,null,null,null,null,null,null,""]
[null,null,null,null,null,null,null,""]
[null,null,null,null,null,null,null,""]
[null,null,null,null,null,null,null,""]
[null,null,null,null,null,null,null,""]
[null,null,null,null,null,null,null,""]
[null,null,null,null,null,null,null,""]
[null,null,null,null,null,null,null,""]
[null,null,null,null,null,null,null,""]
[null,null,null,null,null,null,null,""]
[null,null,null,null,null,null,null,""]
[null,null,null,null,null,null,null,""]
[null,null,null,null,null,null,null,""]
[null,null,null,null,null,null,null,""]
[null,null,null,null,null,null,null,""]
[null,null,null,null,null,null,null,""]
[null,null,null,null,null,null,null,""]
[null,null,null,null,null,null,null,""]
[null,null,null,null,null,null,null,""]
[null,null,null,null,null,null,null,""]
[null,null,null,null,null,null,null,""]
[null,null,null,null,null,null,null,""]
[null,null,null,null,null,null,null,""]
[null,null,null,null,null,null,null,""]
[null,null,null,null,null,null,null,""]
[null,null,null,null,null,null,null,""]
[null,null,null,null,null,null,null,""]
[null,null,null,null,null,null,null,""]
[null,null,null,null,null,null,null,""]
[null,null,null,null,null,null,null,""]
[null,null,null,null,null,null,null,""]
[null,null,null,null,null,null,null,""]
[null,null,null,null,null,null,null,""]
[null,null,null,null,null,null,null,""]
[null,null,null,null,null,null,null,""]
[null,null,null,null,null,null,null,""]
[null,null,null,null,null,null,null,""]
[null,null,null,null,null,null,null,""]
[null,null,null,null,null,null,null,""]
[null,null,null,null,null,null,null,""]
[null,null,null,null,null,null,null,""]
[null,null,null,null,null,null,null,""]
[null,null,null,null,null,null,null,""]
[null,null,null,null,null,null,null,{"$f":"IF(G393=\"Open\",\"Close\",\"\")","v":""}]
[null,null,null,null,null,null,null,""]
[null,null,null,null,null,null,null,""]
[null,null,null,null,null,null,null,""]
[null,null,null,null,null,null,null,""]
[null,null,null,null,null,null,null,""]
[null,null,null,null,null,null,null,""]
[null,null,null,null,null,null,null,""]
[null,null,null,null,null,null,null,""]
[null,null,null,null,null,null,null,""]
[null,null,null,null,null,null,null,""]
[null,null,null,null,null,null,null,""]
[null,null,null,null,null,null,null,""]
[null,null,null,null,null,null,null,""]
[null,null,null,null,null,null,null,""]
[null,null,null,null,null,null,null,""]
[null,null,null,null,null,null,null,""]
[null,null,null,null,null,null,null,""]
[null,null,null,null,null,null,null,""]
[null,null,null,null,null,null,null,""]
[null,null,null,null,null,null,null,""]
[null,null,null,null,null,null,null,""]
[null,null,null,null,null,null,null,""]
[null,null,null,null,null,null,null,""]
[null,null,null,null,null,null,null,""]
[null,null,null,null,null,null,null,""]
[null,null,null,null,null,null,null,""]
[null,null,null,null,null,null,null,""]
[null,null,null,null,null,null,null,""]
[null,null,null,null,null,null,null,""]
[null,null,null,null,null,null,null,""]
[null,null,null,null,null,null,null,""]
[null,null,null,null,null,null,null,""]
[null,null,null,null,null,null,null,""]
[null,null,null,null,null,null,null,""]
[null,null,null,null,null,null,null,""]
[null,null,null,null,null,null,null,""]
[null,null,null,null,null,null,null,""]
[null,null,null,null,null,null,null,""]
[null,null,null,null,null,null,null,""]
[null,null,null,null,null,null,null,""]
[null,null,null,null,null,null,null,""]
[null,null,null,null,null,null,null,""]
[null,null,null,null,null,null,null,""]
[null,null,null,null,null,null,null,""]
[null,null,null,null,null,null,null,""]
[null,null,null,null,null,null,null,""]
[null,null,null,null,null,null,null,""]
[null,null,null,null,null,null,null,""]
[null,null,null,null,null,null,null,""]
[null,null,null,null,null,null,null,""]
[null,null,null,null,null,null,null,""]
[null,null,null,null,null,null,null,""]
[null,null,null,null,null,null,null,""]
[null,null,null,null,null,null,null,""]
[null,null,null,null,null,null,null,""]
[null,null,null,null,null,null,null,""]
[null,null,null,null,null,null,null,""]
[null,null,null,null,null,null,null,""]
[null,null,null,null,null,null,null,""]
[null,null,null,null,null,null,null,""]
[null,null,null,null,null,null,null,""]
[null,null,null,null,null,null,null,""]
[null,null,null,null,null,null,null,""]
[null,null,null,null,null,null,null,{"$f":"IF(G457=\"Open\",\"Close\",\"\")","v":""}]
[null,null,null,null,null,null,null,""]
[null,null,null,null,null,null,null,""]
[null,null,null,null,null,null,null,""]
[null,null,null,null,null,null,null,""]
[null,null,null,null,null,null,null,""]
[null,null,null,null,null,null,null,""]
[null,null,null,null,null,null,null,""]
[null,null,null,null,null,null,null,""]
[null,null,null,null,null,null,null,""]
[null,null,null,null,null,null,null,""]
[null,null,null,null,null,null,null,""]
[null,null,null,null,null,null,null,""]
[null,null,null,null,null,null,null,""]
[null,null,null,null,null,null,null,""]
[null,null,null,null,null,null,null,""]
[null,null,null,null,null,null,null,""]
[null,null,null,null,null,null,null,""]
[null,null,null,null,null,null,null,""]
[null,null,null,null,null,null,null,""]
[null,null,null,null,null,null,null,""]
[null,null,null,null,null,null,null,""]
[null,null,null,null,null,null,null,""]
[null,null,null,null,null,null,null,""]
[null,null,null,null,null,null,null,""]
[null,null,null,null,null,null,null,""]
[null,null,null,null,null,null,null,""]
[null,null,null,null,null,null,null,""]
[null,null,null,null,null,null,null,""]
[null,null,null,null,null,null,null,""]
[null,null,null,null,null,null,null,""]
[null,null,null,null,null,null,null,""]
[null,null,null,null,null,null,null,""]
[null,null,null,null,null,null,null,""]
[null,null,null,null,null,null,null,""]
[null,null,null,null,null,null,null,""]
[null,null,null,null,null,null,null,""]
[null,null,null,null,null,null,null,""]
[null,null,null,null,null,null,null,""]
[null,null,null,null,null,null,null,""]
[null,null,null,null,null,null,null,""]
[null,null,null,null,null,null,null,""]
[null,null,null,null,null,null,null,""]
[null,null,null,null,null,null,null,""]
[null,null,null,null,null,null,null,""]
[null,null,null,null,null,null,null,""]
[null,null,null,null,null,null,null,""]
[null,null,null,null,null,null,null,""]
[null,null,null,null,null,null,null,""]
[null,null,null,null,null,null,null,""]
[null,null,null,null,null,null,null,""]
[null,null,null,null,null,null,null,""]
[null,null,null,null,null,null,null,""]
[null,null,null,null,null,null,null,""]
[null,null,null,null,null,null,null,""]
[null,null,null,null,null,null,null,""]
[null,null,null,null,null,null,null,""]
[null,null,null,null,null,null,null,""]
[null,null,null,null,null,null,null,""]
[null,null,null,null,null,null,null,""]
[null,null,null,null,null,null,null,""]
[null,null,null,null,null,null,null,""]
[null,null,null,null,null,null,null,""]
[null,null,null,null,null,null,null,""]
[null,null,null,null,null,null,null,{"$f":"IF(G521=\"Open\",\"Close\",\"\")","v":""}]
[null,null,null,null,null,null,null,""]
[null,null,null,null,null,null,null,""]
[null,null,null,null,null,null,null,""]
[null,null,null,null,null,null,null,""]
[null,null,null,null,null,null,null,""]
[null,null,null,null,null,null,null,""]
[null,null,null,null,null,null,null,""]
[null,null,null,null,null,null,null,""]
[null,null,null,null,null,null,null,""]
[null,null,null,null,null,null,null,""]
[null,null,null,null,null,null,null,""]
[null,null,null,null,null,null,null,""]
[null,null,null,null,null,null,null,""]
[null,null,null,null,null,null,null,""]
[null,null,null,null,null,null,null,""]
[null,null,null,null,null,null,null,""]
[null,null,null,null,null,null,null,""]
[null,null,null,null,null,null,null,""]
[null,null,null,null,null,null,null,""]
[null,null,null,null,null,null,null,""]
[null,null,null,null,null,null,null,""]
[null,null,null,null,null,null,null,""]
[null,null,null,null,null,null,null,""]
[null,null,null,null,null,null,null,""]
[null,null,null,null,null,null,null,""]
[null,null,null,null,null,null,null,""]
[null,null,null,null,null,null,null,""]
[null,null,null,null,null,null,null,""]
[null,null,null,null,null,null,null,""]
[null,null,null,null,null,null,null,""]
[null,null,null,null,null,null,null,""]
[null,null,null,null,null,null,null,""]
[null,null,null,null,null,null,null,""]
[null,null,null,null,null,null,null,""]
[null,null,null,null,null,null,null,""]
[null,null,null,null,null,null,null,""]
[null,null,null,null,null,null,null,""]
[null,null,null,null,null,null,null,""]
[null,null,null,null,null,null,null,""]
[null,null,null,null,null,null,null,""]
[null,null,null,null,null,null,null,""]
[null,null,null,null,null,null,null,""]
[null,null,null,null,null,null,null,""]
[null,null,null,null,null,null,null,""]
[null,null,null,null,null,null,null,""]
[null,null,null,null,null,null,null,""]
[null,null,null,null,null,null,null,""]
[null,null,null,null,null,null,null,""]
[null,null,null,null,null,null,null,""]
[null,null,null,null,null,null,null,""]
[null,null,null,null,null,null,null,""]
[null,null,null,null,null,null,null,""]
[null,null,null,null,null,null,null,""]
[null,null,null,null,null,null,null,""]
[null,null,null,null,null,null,null,""]
[null,null,null,null,null,null,null,""]
[null,null,null,null,null,null,null,""]
[null,null,null,null,null,null,null,""]
[null,null,null,null,null,null,null,""]
[null,null,null,null,null,null,null,""]
[null,null,null,null,null,null,null,""]
[null,null,null,null,null,null,null,""]
[null,null,null,null,null,null,null,""]
[null,null,null,null,null,null,null,{"$f":"IF(G585=\"Open\",\"Close\",\"\")","v":""}]
[null,null,null,null,null,null,null,""]
[null,null,null,null,null,null,null,""]
[null,null,null,null,null,null,null,""]
[null,null,null,null,null,null,null,""]
[null,null,null,null,null,null,null,""]
[null,null,null,null,null,null,null,""]
[null,null,null,null,null,null,null,""]
[null,null,null,null,null,null,null,""]
[null,null,null,null,null,null,null,""]
[null,null,null,null,null,null,null,""]
[null,null,null,null,null,null,null,""]
[null,null,null,null,null,null,null,""]
[null,null,null,null,null,null,null,""]
[null,null,null,null,null,null,null,""]
[null,null,null,null,null,null,null,""]
[null,null,null,null,null,null,null,""]
[null,null,null,null,null,null,null,""]
[null,null,null,null,null,null,null,""]
[null,null,null,null,null,null,null,""]
[null,null,null,null,null,null,null,""]
[null,null,null,null,null,null,null,""]
[null,null,null,null,null,null,null,""]
[null,null,null,null,null,null,null,""]
[null,null,null,null,null,null,null,""]
[null,null,null,null,null,null,null,""]
[null,null,null,null,null,null,null,""]
[null,null,null,null,null,null,null,""]
[null,null,null,null,null,null,null,""]
[null,null,null,null,null,null,null,""]
[null,null,null,null,null,null,null,""]
[null,null,null,null,null,null,null,""]
[null,null,null,null,null,null,null,""]
[null,null,null,null,null,null,null,""]
[null,null,null,null,null,null,null,""]
[null,null,null,null,null,null,null,""]
[null,null,null,null,null,null,null,""]
[null,null,null,null,null,null,null,""]
[null,null,null,null,null,null,null,""]
[null,null,null,null,null,null,null,""]
[null,null,null,null,null,null,null,""]
[null,null,null,null,null,null,null,""]
[null,null,null,null,null,null,null,""]
[null,null,null,null,null,null,null,""]
[null,null,null,null,null,null,null,""]
[null,null,null,null,null,null,null,""]
[null,null,null,null,null,null,null,""]
[null,null,null,null,null,null,null,""]
[null,null,null,null,null,null,null,""]
[null,null,null,null,null,null,null,""]
[null,null,null,null,null,null,null,""]
[null,null,null,null,null,null,null,""]
[null,null,null,null,null,null,null,""]
[null,null,null,null,null,null,null,""]
[null,null,null,null,null,null,null,""]
[null,null,null,null,null,null,null,""]
[null,null,null,null,null,null,null,""]
[null,null,null,null,null,null,null,""]
[null,null,null,null,null,null,null,""]
[null,null,null,null,null,null,null,""]
[null,null,null,null,null,null,null,""]
[null,null,null,null,null,null,null,""]
[null,null,null,null,null,null,null,""]
[null,null,null,null,null,null,null,""]
[null,null,null,null,null,null,null,{"$f":"IF(G649=\"Open\",\"Close\",\"\")","v":""}]
[null,null,null,null,null,null,null,""]
[null,null,null,null,null,null,null,""]
[null,null,null,null,null,null,null,""]
[null,null,null,null,null,null,null,""]
[null,null,null,null,null,null,null,""]
[null,null,null,null,null,null,null,""]
[null,null,null,null,null,null,null,""]
[null,null,null,null,null,null,null,""]
[null,null,null,null,null,null,null,""]
[null,null,null,null,null,null,null,""]
[null,null,null,null,null,null,null,""]
[null,null,null,null,null,null,null,""]
[null,null,null,null,null,null,null,""]
[null,null,null,null,null,null,null,""]
[null,null,null,null,null,null,null,""]
[null,null,null,null,null,null,null,""]
[null,null,null,null,null,null,null,""]
[null,null,null,null,null,null,null,""]
[null,null,null,null,null,null,null,""]
[null,null,null,null,null,null,null,""]
[null,null,null,null,null,null,null,""]
[null,null,null,null,null,null,null,""]
[null,null,null,null,null,null,null,""]
[null,null,null,null,null,null,null,""]
[null,null,null,null,null,null,null,""]
[null,null,null,null,null,null,null,""]
[null,null,null,null,null,null,null,""]
[null,null,null,null,null,null,null,""]
[null,null,null,null,null,null,null,""]
[null,null,null,null,null,null,null,""]
[null,null,null,null,null,null,null,""]
[null,null,null,null,null,null,null,""]
[null,null,null,null,null,null,null,""]
[null,null,null,null,null,null,null,""]
[null,null,null,null,null,null,null,""]
[null,null,null,null,null,null,null,""]
[null,null,null,null,null,null,null,""]
[null,null,null,null,null,null,null,""]
[null,null,null,null,null,null,null,""]
[null,null,null,null,null,null,null,""]
[null,null,null,null,null,null,null,""]
[null,null,null,null,null,null,null,""]
[null,null,null,null,null,null,null,""]
[null,null,null,null,null,null,null,""]
[null,null,null,null,null,null,null,""]
[null,null,null,null,null,null,null,""]
[null,null,null,null,null,null,null,""]
[null,null,null,null,null,null,null,""]
[null,null,null,null,null,null,null,""]
[null,null,null,null,null,null,null,""]
[null,null,null,null,null,null,null,""]
[null,null,null,null,null,null,null,""]
[null,null,null,null,null,null,null,""]
[null,null,null,null,null,null,null,""]
[null,null,null,null,null,null,null,""]
[null,null,null,null,null,null,null,""]
[null,null,null,null,null,null,null,""]
[null,null,null,null,null,null,null,""]
[null,null,null,null,null,null,null,""]
[null,null,null,null,null,null,null,""]
[null,null,null,null,null,null,null,""]
[null,null,null,null,null,null,null,""]
[null,null,null,null,null,null,null,""]
[null,null,null,null,null,null,null,{"$f":"IF(G713=\"Open\",\"Close\",\"\")","v":""}]
[null,null,null,null,null,null,null,""]
[null,null,null,null,null,null,null,""]
[null,null,null,null,null,null,null,""]
[null,null,null,null,null,null,null,""]
[null,null,null,null,null,null,null,""]
[null,null,null,null,null,null,null,""]
[null,null,null,null,null,null,null,""]
[null,null,null,null,null,null,null,""]
[null,null,null,null,null,null,null,""]
[null,null,null,null,null,null,null,""]
[null,null,null,null,null,null,null,""]
[null,null,null,null,null,null,null,""]
[null,null,null,null,null,null,null,""]
[null,null,null,null,null,null,null,""]
[null,null,null,null,null,null,null,""]
[null,null,null,null,null,null,null,""]
[null,null,null,null,null,null,null,""]
[null,null,null,null,null,null,null,""]
[null,null,null,null,null,null,null,""]
[null,null,null,null,null,null,null,""]
[null,null,null,null,null,null,null,""]
[null,null,null,null,null,null,null,""]
[null,null,null,null,null,null,null,""]
[null,null,null,null,null,null,null,""]
[null,null,null,null,null,null,null,""]
[null,null,null,null,null,null,null,""]
[null,null,null,null,null,null,null,""]
[null,null,null,null,null,null,null,""]
[null,null,null,null,null,null,null,""]
[null,null,null,null,null,null,null,""]
[null,null,null,null,null,null,null,""]
[null,null,null,null,null,null,null,""]
[null,null,null,null,null,null,null,""]
[null,null,null,null,null,null,null,""]
[null,null,null,null,null,null,null,""]
[null,null,null,null,null,null,null,""]
[null,null,null,null,null,null,null,""]
[null,null,null,null,null,null,null,""]
[null,null,null,null,null,null,null,""]
[null,null,null,null,null,null,null,""]
[null,null,null,null,null,null,null,""]
[null,null,null,null,null,null,null,""]
[null,null,null,null,null,null,null,""]
[null,null,null,null,null,null,null,""]
[null,null,null,null,null,null,null,""]
[null,null,null,null,null,null,null,""]
[null,null,null,null,null,null,null,""]
[null,null,null,null,null,null,null,""]
[null,null,null,null,null,null,null,""]
[null,null,null,null,null,null,null,""]
[null,null,null,null,null,null,null,""]
[null,null,null,null,null,null,null,""]
[null,null,null,null,null,null,null,""]
[null,null,null,null,null,null,null,""]
[null,null,null,null,null,null,null,""]
[null,null,null,null,null,null,null,""]
[null,null,null,null,null,null,null,""]
[null,null,null,null,null,null,null,""]
[null,null,null,null,null,null,null,""]
[null,null,null,null,null,null,null,""]
[null,null,null,null,null,null,null,""]
[null,null,null,null,null,null,null,""]
[null,null,null,null,null,null,null,""]
[null,null,null,null,null,null,null,{"$f":"IF(G777=\"Open\",\"Close\",\"\")","v":""}]
[null,null,null,null,null,null,null,""]
[null,null,null,null,null,null,null,""]
[null,null,null,null,null,null,null,""]
[null,null,null,null,null,null,null,""]
[null,null,null,null,null,null,null,""]
[null,null,null,null,null,null,null,""]
[null,null,null,null,null,null,null,""]
[null,null,null,null,null,null,null,""]
[null,null,null,null,null,null,null,""]
[null,null,null,null,null,null,null,""]
[null,null,null,null,null,null,null,""]
[null,null,null,null,null,null,null,""]
[null,null,null,null,null,null,null,""]
[null,null,null,null,null,null,null,""]
[null,null,null,null,null,null,null,""]
[null,null,null,null,null,null,null,""]
[null,null,null,null,null,null,null,""]
[null,null,null,null,null,null,null,""]
[null,null,null,null,null,null,null,""]
[null,null,null,null,null,null,null,""]
[null,null,null,null,null,null,null,""]
[null,null,null,null,null,null,null,""]
[null,null,null,null,null,null,null,""]
[null,null,null,null,null,null,null,""]
[null,null,null,null,null,null,null,""]
[null,null,null,null,null,null,null,""]
[null,null,null,null,null,null,null,""]
[null,null,null,null,null,null,null,""]
[null,null,null,null,null,null,null,""]
[null,null,null,null,null,null,null,""]
[null,null,null,null,null,null,null,""]
[null,null,null,null,null,null,null,""]
[null,null,null,null,null,null,null,""]
[null,null,null,null,null,null,null,""]
[null,null,null,null,null,null,null,""]
[null,null,null,null,null,null,null,""]
[null,null,null,null,null,null,null,""]
[null,null,null,null,null,null,null,""]
[null,null,null,null,null,null,null,""]
[null,null,null,null,null,null,null,""]
[null,null,null,null,null,null,null,""]
[null,null,null,null,null,null,null,""]
[null,null,null,null,null,null,null,""]
[null,null,null,null,null,null,null,""]
[null,null,null,null,null,null,null,""]
[null,null,null,null,null,null,null,""]
[null,null,null,null,null,null,null,""]
[null,null,null,null,null,null,null,""]
[null,null,null,null,null,null,null,""]
[null,null,null,null,null,null,null,""]
[null,null,null,null,null,null,null,""]
[null,null,null,null,null,null,null,""]
[null,null,null,null,null,null,null,""]
[null,null,null,null,null,null,null,""]
[null,null,null,null,null,null,null,""]
[null,null,null,null,null,null,null,""]
[null,null,null,null,null,null,null,""]
[null,null,null,null,null,null,null,""]
[null,null,null,null,null,null,null,""]
[null,null,null,null,null,null,null,""]
[null,null,null,null,null,null,null,""]
[null,null,null,null,null,null,null,""]
[null,null,null,null,null,null,null,""]
[null,null,null,null,null,null,null,{"$f":"IF(G841=\"Open\",\"Close\",\"\")","v":""}]
[null,null,null,null,null,null,null,""]
[null,null,null,null,null,null,null,""]
[null,null,null,null,null,null,null,""]
[null,null,null,null,null,null,null,""]
[null,null,null,null,null,null,null,""]
[null,null,null,null,null,null,null,""]
[null,null,null,null,null,null,null,""]
[null,null,null,null,null,null,null,""]
[null,null,null,null,null,null,null,""]
[null,null,null,null,null,null,null,""]
[null,null,null,null,null,null,null,""]
[null,null,null,null,null,null,null,""]
[null,null,null,null,null,null,null,""]
[null,null,null,null,null,null,null,""]
[null,null,null,null,null,null,null,""]
[null,null,null,null,null,null,null,""]
[null,null,null,null,null,null,null,""]
[null,null,null,null,null,null,null,""]
[null,null,null,null,null,null,null,""]
[null,null,null,null,null,null,null,""]
[null,null,null,null,null,null,null,""]
[null,null,null,null,null,null,null,""]
[null,null,null,null,null,null,null,""]
[null,null,null,null,null,null,null,""]
[null,null,null,null,null,null,null,""]
[null,null,null,null,null,null,null,""]
[null,null,null,null,null,null,null,""]
[null,null,null,null,null,null,null,""]
[null,null,null,null,null,null,null,""]
[null,null,null,null,null,null,null,""]
[null,null,null,null,null,null,null,""]
[null,null,null,null,null,null,null,""]
[null,null,null,null,null,null,null,""]
[null,null,null,null,null,null,null,""]
[null,null,null,null,null,null,null,""]
[null,null,null,null,null,null,null,""]
[null,null,null,null,null,null,null,""]
[null,null,null,null,null,null,null,""]
[null,null,null,null,null,null,null,""]
[null,null,null,null,null,null,null,""]
[null,null,null,null,null,null,null,""]
[null,null,null,null,null,null,null,""]
[null,null,null,null,null,null,null,""]
[null,null,null,null,null,null,null,""]
[null,null,null,null,null,null,null,""]
[null,null,null,null,null,null,null,""]
[null,null,null,null,null,null,null,""]
[null,null,null,null,null,null,null,""]
[null,null,null,null,null,null,null,""]
[null,null,null,null,null,null,null,""]
[null,null,null,null,null,null,null,""]
[null,null,null,null,null,null,null,""]
[null,null,null,null,null,null,null,""]
[null,null,null,null,null,null,null,""]
[null,null,null,null,null,null,null,""]
[null,null,null,null,null,null,null,""]
[null,null,null,null,null,null,null,""]
[null,null,null,null,null,null,null,""]
[null,null,null,null,null,null,null,""]
[null,null,null,null,null,null,null,""]
[null,null,null,null,null,null,null,""]
[null,null,null,null,null,null,null,""]
[null,null,null,null,null,null,null,""]
[null,null,null,null,null,null,null,{"$f":"IF(G905=\"Open\",\"Close\",\"\")","v":""}]
[null,null,null,null,null,null,null,""]
[null,null,null,null,null,null,null,""]
[null,null,null,null,null,null,null,""]
[null,null,null,null,null,null,null,""]
[null,null,null,null,null,null,null,""]
[null,null,null,null,null,null,null,""]
[null,null,null,null,null,null,null,""]
[null,null,null,null,null,null,null,""]
[null,null,null,null,null,null,null,""]
[null,null,null,null,null,null,null,""]
[null,null,null,null,null,null,null,""]
[null,null,null,null,null,null,null,""]
[null,null,null,null,null,null,null,""]
[null,null,null,null,null,null,null,""]
[null,null,null,null,null,null,null,""]
[null,null,null,null,null,null,null,""]
[null,null,null,null,null,null,null,""]
[null,null,null,null,null,null,null,""]
[null,null,null,null,null,null,null,""]
[null,null,null,null,null,null,null,""]
[null,null,null,null,null,null,null,""]
[null,null,null,null,null,null,null,""]
[null,null,null,null,null,null,null,""]
[null,null,null,null,null,null,null,""]
[null,null,null,null,null,null,null,""]
[null,null,null,null,null,null,null,""]
[null,null,null,null,null,null,null,""]
[null,null,null,null,null,null,null,""]
[null,null,null,null,null,null,null,""]
[null,null,null,null,null,null,null,""]
[null,null,null,null,null,null,null,""]
[null,null,null,null,null,null,null,""]
[null,null,null,null,null,null,null,""]
[null,null,null,null,null,null,null,""]
[null,null,null,null,null,null,null,""]
[null,null,null,null,null,null,null,""]
[null,null,null,null,null,null,null,""]
[null,null,null,null,null,null,null,""]
[null,null,null,null,null,null,null,""]
[null,null,null,null,null,null,null,""]
[null,null,null,null,null,null,null,""]
[null,null,null,null,null,null,null,""]
[null,null,null,null,null,null,null,""]
[null,null,null,null,null,null,null,""]
[null,null,null,null,null,null,null,""]
[null,null,null,null,null,null,null,""]
[null,null,null,null,null,null,null,""]
[null,null,null,null,null,null,null,""]
[null,null,null,null,null,null,null,""]
[null,null,null,null,null,null,null,""]
[null,null,null,null,null,null,null,""]
[null,null,null,null,null,null,null,""]
[null,null,null,null,null,null,null,""]
[null,null,null,null,null,null,null,""]
[null,null,null,null,null,null,null,""]
[null,null,null,null,null,null,null,""]
[null,null,null,null,null,null,null,""]
[null,null,null,null,null,null,null,""]
[null,null,null,null,null,null,null,""]
[null,null,null,null,null,null,null,""]
[null,null,null,null,null,null,null,""]
[null,null,null,null,null,null,null,""]
[null,null,null,null,null,null,null,""]
[null,null,null,null,null,null,null,{"$f":"IF(G969=\"Open\",\"Close\",\"\")","v":""}]
[null,null,null,null,null,null,null,""]
[null,null,null,null,null,null,null,""]
[null,null,null,null,null,null,null,""]
[null,null,null,null,null,null,null,""]
[null,null,null,null,null,null,null,""]
[null,null,null,null,null,null,null,""]
[null,null,null,null,null,null,null,""]
[null,null,null,null,null,null,null,""]
[null,null,null,null,null,null,null,""]
[null,null,null,null,null,null,null,""]
[null,null,null,null,null,null,null,""]
[null,null,null,null,null,null,null,""]
[null,null,null,null,null,null,null,""]
[null,null,null,null,null,null,null,""]
[null,null,null,null,null,null,null,""]
[null,null,null,null,null,null,null,""]
[null,null,null,null,null,null,null,""]
[null,null,null,null,null,null,null,""]
[null,null,null,null,null,null,null,""]
[null,null,null,null,null,null,null,""]
[null,null,null,null,null,null,null,""]
[null,null,null,null,null,null,null,""]
[null,null,null,null,null,null,null,""]
[null,null,null,null,null,null,null,""]
[null,null,null,null,null,null,null,""]
[null,null,null,null,null,null,null,""]
[null,null,null,null,null,null,null,""]
[null,null,null,null,null,null,null,""]
[null,null,null,null,null,null,null,""]
[null,null,null,null,null,null,null,""]
[null,null,null,null,null,null,null,""]

{"sheet":"Instruments","index":4,"n_rows":186,"n_cols":3,"rows_kept":186,"cut":false,"hidden":false,"merged":[]}
["symbol","currency","uic"]
["EURUSD","USD",21]
["GBPUSD","USD",31]
["USDJPY","JPY",42]
["XAUUSD","USD",8176]
["GBPJPY","JPY",26]
["USDCAD","CAD",38]
["AUDUSD","USD",4]
["EURJPY","JPY",18]
["EURGBP","GBP",17]
["AUDJPY","JPY",2]
["NZDUSD","USD",37]
["EURAUD","AUD",12]
["USDCHF","CHF",39]
["AUDNZD","NZD",3]
["EURCHF","CHF",14]
["AUDCAD","CAD",1]
["GBPAUD","AUD",22]
["EURCAD","CAD",13]
["USDTRY","TRY",13928]
["CADJPY","JPY",6]
["USDMXN","MXN",1348]
["CADCHF","CHF",5]
["GBPNZD","NZD",28]
["NZDCAD","CAD",33]
["EURNZD","NZD",2072]
["GBPCHF","CHF",24]
["XAGUSD","USD",8177]
["GBPCAD","CAD",23]
["EURNOK","NOK",19]
["CHFJPY","JPY",8]
["NZDJPY","JPY",36]
["USDZAR","ZAR",1296]
["USDSEK","SEK",44]
["USDNOK","NOK",43]
["AUDCHF","CHF",5027]
["EURSEK","SEK",20]
["USDCNH","CNH",52872]
["NZDCHF","CHF",34]
["TRYJPY","JPY",23582]
["USDRUB","RUB",8957]
["XAUEUR","EUR",17190]
["USDSGD","SGD",45]
["GBPMXN","MXN",14009]
["EURHUF","HUF",2071]
["USDHUF","HUF",2075]
["EURTRY","TRY",13927]
["AUDSGD","SGD",9436]
["MXNJPY","JPY",23581]
["NOKSEK","SEK",32]
["EURMXN","MXN",2871]
["USDPLN","PLN",47]
["CADMXN","MXN",23739]
["XPTUSD","USD",107830]
["GBPNOK","NOK",27]
["GBPSGD","SGD",30]
["USDDKK","DKK",41]
["CADUSD","USD",3946]
["CHFUSD","USD",17746]
["EURPLN","PLN",1343]
["EURSGD","SGD",4800]
["SGDJPY","JPY",48]
["GBPTRY","TRY",23522]
["GBPSEK","SEK",29]
["EURZAR","ZAR",2073]
["CHFNOK","NOK",9]
["NZDSGD","SGD",8183]
["GBPEUR","EUR",3942]
["CHFSGD","SGD",23521]
["ZARJPY","JPY",21281]
["NOKJPY","JPY",46]
["USDAUD","AUD",22413]
["CADNOK","NOK",6158]
["USDILS","ILS",4773]
["JPYUSD","USD",3849]
["XAGEUR","EUR",19846]
["EURRUB","RUB",31242]
["XAUXAG","XAG",195179]
["EURHKD","HKD",5400]
["AUDGBP","GBP",3115]
["SEKJPY","JPY",2870]
["CADSGD","SGD",682710]
["USDHKD","HKD",1345]
["CHFTRY","TRY",23520]
["EURCZK","CZK",15]
["GBPZAR","ZAR",5125]
["GBPHKD","HKD",5395]
["SEKNOK","NOK",2048]
["TRYZAR","ZAR",37130]
["HKDJPY","JPY",8943]
["GBPDKK","DKK",25]
["GBPHUF","HUF",7609]
["XAUCHF","CHF",155945]
["SGDCNH","CNH",9095522]
["CHFSEK","SEK",1305]
["USDCZK","CZK",40]
["XAUAUD","AUD",19910]
["NZDAUD","AUD",3939]
["NZDSEK","SEK",9452]
["GBPPLN","PLN",8712]
["TRYDKK","DKK",21321]
["JPYNOK","NOK",3077]
["AUDEUR","EUR",5124]
["CADEUR","EUR",3943]
["EURCNH","CNH",52830]
["CADSEK","SEK",36897]
["CHFMXN","MXN",30631]
["EURDKK","DKK",16]
["USDTHB","THB",1351]
["CHFHUF","HUF",9439]
["NOKUSD","USD",17764]
["AUDTRY","TRY",23509]
["AUDNOK","NOK",30630]
["CHFZAR","ZAR",9440]
["NZDGBP","GBP",4014]
["CHFPLN","PLN",6561]
["NZDNOK","NOK",5396]
["XAUTRY","TRY",57359]
["MXNUSD","USD",17761]
["NZDEUR","EUR",35]
["NZDMXN","MXN",30553]
["AUDSEK","SEK",24392]
["XAUCNH","CNH",719823]
["EURRON","RON",24443]
["XAUJPY","JPY",19719]
["USDAED","AED",1363]
["AUDCNH","CNH",52823]
["NZDZAR","ZAR",23525]
["NOKDKK","DKK",2046]
["PLNJPY","JPY",3901]
["CADPLN","PLN",23690]
["AUDZAR","ZAR",23610]
["CADCNH","CNH",52824]
["EURILS","ILS",39057]
["CADTRY","TRY",23519]
["NZDTRY","TRY",23524]
["CHFAUD","AUD",7]
["AUDMXN","MXN",30651]
["CNHJPY","JPY",52873]
["DKKJPY","JPY",4727]
["XAGAUD","AUD",20770]
["NZDHUF","HUF",9450]
["AUDHUF","HUF",9434]
["AUDPLN","PLN",9435]
["SEKDKK","DKK",2047]
["AUDDKK","DKK",3863]
["HUFJPY","JPY",37129]
["DKKSGD","SGD",9443]
["CHFCNH","CNH",52828]
["CHFCZK","CZK",9438]
["CNHHKD","HKD",300875]
["JPYDKK","DKK",2115]
["DKKZAR","ZAR",9445]
["NZDDKK","DKK",3864]
["NZDCNH","CNH",52870]
["AUDHKD","HKD",5394]
["SGDHKD","HKD",23742]
["XAGJPY","JPY",19847]
["PLNHUF","HUF",36770]
["GBPCNH","CNH",52832]
["JPYEUR","EUR",3940]
["GBPCZK","CZK",9447]
["NZDPLN","PLN",9451]
["XPTZAR","ZAR",458692]
["EURTHB","THB",9446]
["DKKPLN","PLN",21294]
["XAURUB","RUB",347972]
["USDRON","RON",24407]
["GBPILS","ILS",26766]
["CZKPLN","PLN",36629]
["CHFDKK","DKK",1311]
["SEKPLN","PLN",21295]
["DKKHUF","HUF",9442]
["AUDCZK","CZK",9433]
["XAUHKD","HKD",22563]
["CHFHKD","HKD",39771]
["USDSAR","SAR",1350]
["NZDHKD","HKD",40334]
["XAGHKD","HKD",22562]
["NZDCZK","CZK",9449]
["PLNSEK","SEK",20300]
["DKKCZK","CZK",9441]
["XAUTHB","THB",53684]
["SGDSEK","SEK",40953]
["CADZAR","ZAR",2906229]
["PLNDKK","DKK",3934]